Publisher Label,Publisher URI,"Supplier","Net Amount (£)","Organisational Unit","Merchant Category Code","Purpose","Payment Date"
"Wolverhampton City Council","http://opendatacommunities.org/id/metropolitan-district-council/wolverhampton","Virgin Trains","52.70","Information Governance Team","4112","Public Transport","30/03/2018"
"Wolverhampton City Council","http://opendatacommunities.org/id/metropolitan-district-council/wolverhampton","000002200500000","250.00","EIP Locality 2","6011","Grant Payments","30/03/2018"
"Wolverhampton City Council","http://opendatacommunities.org/id/metropolitan-district-council/wolverhampton","ASDA GEORGE COM LEEDS","-20.83","LAC Transitions Team","5411","Client Allowances","30/03/2018"
"Wolverhampton City Council","http://opendatacommunities.org/id/metropolitan-district-council/wolverhampton","FACEBK N3GUKF2AR2","32.01","Communications & Marketing - General","7311","Marketing \ Non-staff advertising","30/03/2018"
"Wolverhampton City Council","http://opendatacommunities.org/id/metropolitan-district-council/wolverhampton","FACEBK M3GUKF2AR2","467.99","Communications & Marketing - General","7311","Marketing \ Non-staff advertising","30/03/2018"
"Wolverhampton City Council","http://opendatacommunities.org/id/metropolitan-district-council/wolverhampton","WWW.THEKNOWLEDGEACADEM","512.77","IMPACT","8249","Training Expenses","30/03/2018"
"Wolverhampton City Council","http://opendatacommunities.org/id/metropolitan-district-council/wolverhampton","BRITISH BEAUTY ACADEMY","135.00","IMPACT","8299","Training Expenses","30/03/2018"
"Wolverhampton City Council","http://opendatacommunities.org/id/metropolitan-district-council/wolverhampton","BRITISH BEAUTY ACADEMY","85.00","IMPACT","8299","Training Expenses","30/03/2018"
"Wolverhampton City Council","http://opendatacommunities.org/id/metropolitan-district-council/wolverhampton","BRITISH BEAUTY ACADEMY","189.00","IMPACT","8299","Training Expenses","30/03/2018"
"Wolverhampton City Council","http://opendatacommunities.org/id/metropolitan-district-council/wolverhampton","WWW.SIGNATURE.ORG.UK","40.00","AES Staff Development","8299","Materials","30/03/2018"
"Wolverhampton City Council","http://opendatacommunities.org/id/metropolitan-district-council/wolverhampton","SAINSBURYS (2340)","12.50","Mayoral Expenses","5411","Hospitality","30/03/2018"
"Wolverhampton City Council","http://opendatacommunities.org/id/metropolitan-district-council/wolverhampton","ARGOS RETAIL GROUP","159.99","Youth Offending Team","5310","Equipment - Purchase","30/03/2018"
"Wolverhampton City Council","http://opendatacommunities.org/id/metropolitan-district-council/wolverhampton","Virgin Trains","109.70","LAC Team","4112","Client Transport","30/03/2018"
"Wolverhampton City Council","http://opendatacommunities.org/id/metropolitan-district-council/wolverhampton","Virgin Trains","107.70","LAC Team","4112","Client Transport","30/03/2018"
"Wolverhampton City Council","http://opendatacommunities.org/id/metropolitan-district-council/wolverhampton","ROYAL CARPETS","125.00","LAC Transitions Team","5713","Independant Living Allowance","30/03/2018"
"Wolverhampton City Council","http://opendatacommunities.org/id/metropolitan-district-council/wolverhampton","CREATIVE FRAMING","122.65","Democratic Support","5971","Services - Professional Fees","30/03/2018"
"Wolverhampton City Council","http://opendatacommunities.org/id/metropolitan-district-council/wolverhampton","ARENATHEATRE.INFO","120.00","Youth Offending Team","8220","Training Expenses","30/03/2018"
"Wolverhampton City Council","http://opendatacommunities.org/id/metropolitan-district-council/wolverhampton","ARENATHEATRE.INFO","240.00","Youth Offending Team","8220","Training Expenses","30/03/2018"
"Wolverhampton City Council","http://opendatacommunities.org/id/metropolitan-district-council/wolverhampton","WWW.UKGAMESEXPO.CO.UK","39.00","Youth Offending Team","5945","Equipment - Purchase","30/03/2018"
"Wolverhampton City Council","http://opendatacommunities.org/id/metropolitan-district-council/wolverhampton","PREMIER INN","147.50","Revenues","3811","Accommodation Costs","30/03/2018"
"Wolverhampton City Council","http://opendatacommunities.org/id/metropolitan-district-council/wolverhampton","WWW.MILLERANDCARTERGIF","100.00","Wolverhampton Indoor and Open Market","5999","Equipment - Purchase","30/03/2018"
"Wolverhampton City Council","http://opendatacommunities.org/id/metropolitan-district-council/wolverhampton","POST OFFICE COUNTER","68.25","LAC Team","9402","Comms - Postage","30/03/2018"
"Wolverhampton City Council","http://opendatacommunities.org/id/metropolitan-district-council/wolverhampton","GO CARZ","22.80","CIN/CP Social Work Unit - Area 5","4121","Section 17","30/03/2018"
"Wolverhampton City Council","http://opendatacommunities.org/id/metropolitan-district-council/wolverhampton","LES MILLS FITNESS","24.99","Central Training","8220","Training Expenses","30/03/2018"
"Wolverhampton City Council","http://opendatacommunities.org/id/metropolitan-district-council/wolverhampton","ACUITY RESEARCH & PRAC","145.00","Central Training","8299","Training Expenses","30/03/2018"
"Wolverhampton City Council","http://opendatacommunities.org/id/metropolitan-district-council/wolverhampton","WOLVES CC","10.00","Ernest Bold Court","9399","Client Transport","30/03/2018"
"Wolverhampton City Council","http://opendatacommunities.org/id/metropolitan-district-council/wolverhampton","Trainline","52.50","CIN/CP Social Work Unit - Area 4","4112","Section 17","30/03/2018"
"Wolverhampton City Council","http://opendatacommunities.org/id/metropolitan-district-council/wolverhampton","WWW.PARKINGEYE.CO.UK","60.00","EIP Locality 5","9399","Parking Fees","30/03/2018"
"Wolverhampton City Council","http://opendatacommunities.org/id/metropolitan-district-council/wolverhampton","QUARTIX LTD","139.50","Strategic ICTS (ICT Serv Budget)","5533","Vehicle Maintenance - Repairs","30/03/2018"
"Wolverhampton City Council","http://opendatacommunities.org/id/metropolitan-district-council/wolverhampton","REGISTRARS OFFICE","30.00","Head of Service - CINCP","8299","Services - Professional Fees","29/03/2018"
"Wolverhampton City Council","http://opendatacommunities.org/id/metropolitan-district-council/wolverhampton","Trainline","58.50","Revenues","4112","Public Transport","29/03/2018"
"Wolverhampton City Council","http://opendatacommunities.org/id/metropolitan-district-council/wolverhampton","TESCO STORES 5194","-0.55","Towers Outdoor Education Centre","5411","Provisions (Not for resale)","29/03/2018"
"Wolverhampton City Council","http://opendatacommunities.org/id/metropolitan-district-council/wolverhampton","POST OFFICE COUNTER","2.95","Towers Outdoor Education Centre","9402","Comms - Postage","29/03/2018"
"Wolverhampton City Council","http://opendatacommunities.org/id/metropolitan-district-council/wolverhampton","SQUARESPACE INC.","158.08","Headstart Phase 3","7372","Computing - Purchase of Software","29/03/2018"
"Wolverhampton City Council","http://opendatacommunities.org/id/metropolitan-district-council/wolverhampton","WAITROSE 696","12.71","Headstart - Young People Engagement","5411","Provisions (Not for resale)","29/03/2018"
"Wolverhampton City Council","http://opendatacommunities.org/id/metropolitan-district-council/wolverhampton","WOLVERHAMPTON CC","5.42","IMPACT","7523","Car Allowances","29/03/2018"
"Wolverhampton City Council","http://opendatacommunities.org/id/metropolitan-district-council/wolverhampton","S & B WASTE","168.00","Admin & Support","4900","Equipment - Hire","29/03/2018"
"Wolverhampton City Council","http://opendatacommunities.org/id/metropolitan-district-council/wolverhampton","ARGOS LTD","39.99","LAC Transitions Team","5310","Client Allowances","29/03/2018"
"Wolverhampton City Council","http://opendatacommunities.org/id/metropolitan-district-council/wolverhampton","HOME BARGAINS WOLVERHA","20.69","Cemeteries","5251","Equipment - Purchase","29/03/2018"
"Wolverhampton City Council","http://opendatacommunities.org/id/metropolitan-district-council/wolverhampton","UNTOUCHABLES","37.92","Cemeteries","5231","Materials","29/03/2018"
"Wolverhampton City Council","http://opendatacommunities.org/id/metropolitan-district-council/wolverhampton","BRITANNIA","41.04","EIP Locality 5","7011","Grant Payments","29/03/2018"
"Wolverhampton City Council","http://opendatacommunities.org/id/metropolitan-district-council/wolverhampton","ITUNES.COM/BILL","0.79","Strategic ICTS (ICT Serv Budget)","5735","Computing - Purchase of Software","29/03/2018"
"Wolverhampton City Council","http://opendatacommunities.org/id/metropolitan-district-council/wolverhampton","ASDA SUPERSTORE","100.00","CIN/CP Social Work Unit - Area 3","5411","No Recourse to Public Funds","29/03/2018"
"Wolverhampton City Council","http://opendatacommunities.org/id/metropolitan-district-council/wolverhampton","WOLVERHAMPTON CC","4.58","Headstart Phase 3","7523","Parking Fees","29/03/2018"
"Wolverhampton City Council","http://opendatacommunities.org/id/metropolitan-district-council/wolverhampton","HERON FOODS LTD","12.69","Ernest Bold Court","5499","Catering","29/03/2018"
"Wolverhampton City Council","http://opendatacommunities.org/id/metropolitan-district-council/wolverhampton","GO CARZ","22.80","CIN/CP Social Work Unit - Area 5","4121","Section 17","29/03/2018"
"Wolverhampton City Council","http://opendatacommunities.org/id/metropolitan-district-council/wolverhampton","Amazon EU","24.16","LAC Transitions Team","5969","Educ Trips, Holidays, Outings, Activity","29/03/2018"
"Wolverhampton City Council","http://opendatacommunities.org/id/metropolitan-district-council/wolverhampton","CUMMINGS BROTHERS LOCK","10.00","Specialist Support Service - North","7399","Equipment - Purchase","29/03/2018"
"Wolverhampton City Council","http://opendatacommunities.org/id/metropolitan-district-council/wolverhampton","MAJESTIC WINE WARE","-113.40","Civic Centre Catering","5921","Equipment - Purchase","29/03/2018"
"Wolverhampton City Council","http://opendatacommunities.org/id/metropolitan-district-council/wolverhampton","Amazon Digital Dwnlds","0.99","Central Training","5735","Books","29/03/2018"
"Wolverhampton City Council","http://opendatacommunities.org/id/metropolitan-district-council/wolverhampton","J VAN VLIET BIRMINGHAM","91.17","Creative Studies Delivery Area","5399","Materials","29/03/2018"
"Wolverhampton City Council","http://opendatacommunities.org/id/metropolitan-district-council/wolverhampton","J VAN VLIET BIRMINGHAM","1.75","Creative Studies Delivery Area","5399","Materials for resale","29/03/2018"
"Wolverhampton City Council","http://opendatacommunities.org/id/metropolitan-district-council/wolverhampton","WWW.GADGETWEAR.CO.UK","5.82","Landscape","4812","Materials","29/03/2018"
"Wolverhampton City Council","http://opendatacommunities.org/id/metropolitan-district-council/wolverhampton","B&M RETAIL","29.16","LAC Transitions Team","5310","Client Allowances","28/03/2018"
"Wolverhampton City Council","http://opendatacommunities.org/id/metropolitan-district-council/wolverhampton","WILKO RETAIL LIMIT","3.33","Technician","5722","Materials","28/03/2018"
"Wolverhampton City Council","http://opendatacommunities.org/id/metropolitan-district-council/wolverhampton","REGISTRARS OFFICE","30.00","Adoption and Residence Team & Allowances","8299","Services - Fees and Charges","28/03/2018"
"Wolverhampton City Council","http://opendatacommunities.org/id/metropolitan-district-council/wolverhampton","TESCO STORES 5194","48.04","Towers Outdoor Education Centre","5411","Provisions (Not for resale)","28/03/2018"
"Wolverhampton City Council","http://opendatacommunities.org/id/metropolitan-district-council/wolverhampton","000002200500000","100.00","Headstart Phase 3","6011","Financial Assistance In Exceptional Circ","28/03/2018"
"Wolverhampton City Council","http://opendatacommunities.org/id/metropolitan-district-council/wolverhampton","COSTA COFFEE 43040010","4.33","Headstart - Young People Engagement","5814","Subsistence","28/03/2018"
"Wolverhampton City Council","http://opendatacommunities.org/id/metropolitan-district-council/wolverhampton","SAINSBURYS 2040","59.92","Headstart - Young People Engagement","5411","Catering","28/03/2018"
"Wolverhampton City Council","http://opendatacommunities.org/id/metropolitan-district-council/wolverhampton","RS COMPONENTS","6.62","Central Baths","5065","Equipment - R & M","28/03/2018"
"Wolverhampton City Council","http://opendatacommunities.org/id/metropolitan-district-council/wolverhampton","ASDA GROCERIES ONLINE","-2.68","Upper Pendeford Farm Childrens Home","5411","Provisions (Not for resale)","28/03/2018"
"Wolverhampton City Council","http://opendatacommunities.org/id/metropolitan-district-council/wolverhampton","ASDA GROCERIES ONLINE","172.03","Upper Pendeford Farm Childrens Home","5411","Provisions (Not for resale)","28/03/2018"
"Wolverhampton City Council","http://opendatacommunities.org/id/metropolitan-district-council/wolverhampton","Amazon UK Marketplace","155.94","Private Sector Housing","5942","Equipment - Purchase","28/03/2018"
"Wolverhampton City Council","http://opendatacommunities.org/id/metropolitan-district-council/wolverhampton","E01577600000000","100.00","EIP Locality 3","6011","Grant Payments","28/03/2018"
"Wolverhampton City Council","http://opendatacommunities.org/id/metropolitan-district-council/wolverhampton","Amazon EU","157.27","Private Sector Housing","5969","Equipment - Purchase","28/03/2018"
"Wolverhampton City Council","http://opendatacommunities.org/id/metropolitan-district-council/wolverhampton","B & Q 1243","3.98","Blakenhall Resource Centre","5211","Equipment - R & M","28/03/2018"
"Wolverhampton City Council","http://opendatacommunities.org/id/metropolitan-district-council/wolverhampton","GO CARZ","24.80","CIN/CP Social Work Unit - Area 5","4121","Section 17","28/03/2018"
"Wolverhampton City Council","http://opendatacommunities.org/id/metropolitan-district-council/wolverhampton","WWW.ADASS.ORG.UK","200.00","Workforce Development","8398","Training Expenses","28/03/2018"
"Wolverhampton City Council","http://opendatacommunities.org/id/metropolitan-district-council/wolverhampton","Cross Country Trains","33.70","Welfare Rights","4112","Public Transport","28/03/2018"
"Wolverhampton City Council","http://opendatacommunities.org/id/metropolitan-district-council/wolverhampton","J VAN VLIET BIRMINGHAM","83.70","Creative Studies Delivery Area","5399","Materials","28/03/2018"
"Wolverhampton City Council","http://opendatacommunities.org/id/metropolitan-district-council/wolverhampton","J VAN VLIET BIRMINGHAM","57.05","Creative Studies Delivery Area","5399","Materials","28/03/2018"
"Wolverhampton City Council","http://opendatacommunities.org/id/metropolitan-district-council/wolverhampton","Trainline","-82.90","CIN/CP Social Work Unit - Area 4","4112","Section 17","28/03/2018"
"Wolverhampton City Council","http://opendatacommunities.org/id/metropolitan-district-council/wolverhampton","Amazon EU","19.95","EIP Locality 2","5969","Equipment - Purchase","27/03/2018"
"Wolverhampton City Council","http://opendatacommunities.org/id/metropolitan-district-council/wolverhampton","CITY DIRECT","31.00","IMPACT","8299","Training Expenses","27/03/2018"
"Wolverhampton City Council","http://opendatacommunities.org/id/metropolitan-district-council/wolverhampton","WWW.ET-FOUNDATION","250.00","AES Staff Development","8220","Training Expenses","27/03/2018"
"Wolverhampton City Council","http://opendatacommunities.org/id/metropolitan-district-council/wolverhampton","WWW.NURTUREGROUPS.ORG","175.05","LAC Education Team (LACE)","8398","Services - Supplies & Services to users","27/03/2018"
"Wolverhampton City Council","http://opendatacommunities.org/id/metropolitan-district-council/wolverhampton","AMZ Cables UK","-18.00","Strategic ICTS (ICT Serv Budget)","5999","Equipment - Purchase","27/03/2018"
"Wolverhampton City Council","http://opendatacommunities.org/id/metropolitan-district-council/wolverhampton","Virgin Trains","184.90","Private Sector Housing","4112","Public Transport","27/03/2018"
"Wolverhampton City Council","http://opendatacommunities.org/id/metropolitan-district-council/wolverhampton","E019786 0000000","20.00","EIP Locality 1","6011","Grant Payments","27/03/2018"
"Wolverhampton City Council","http://opendatacommunities.org/id/metropolitan-district-council/wolverhampton","POST OFFICE COUNTER","168.80","Civic Centre Catering","9402","Comms - Postage","27/03/2018"
"Wolverhampton City Council","http://opendatacommunities.org/id/metropolitan-district-council/wolverhampton","WWW.DERBY.GOV.UK","11.00","LAC Team","9399","Financial Assistance In Exceptional Circ","27/03/2018"
"Wolverhampton City Council","http://opendatacommunities.org/id/metropolitan-district-council/wolverhampton","ASDA GROCERIES ONLINE","76.45","Ernest Bold Court","5411","Provisions (Not for resale)","27/03/2018"
"Wolverhampton City Council","http://opendatacommunities.org/id/metropolitan-district-council/wolverhampton","GO CARZ","22.80","CIN/CP Social Work Unit - Area 5","4121","Section 17","27/03/2018"
"Wolverhampton City Council","http://opendatacommunities.org/id/metropolitan-district-council/wolverhampton","Trainline","292.50","CIN/CP Social Work Unit - Area 4","4112","Public Transport","27/03/2018"
"Wolverhampton City Council","http://opendatacommunities.org/id/metropolitan-district-council/wolverhampton","TIMPSON LTD","9.00","Civic Centre Catering","7251","Fixtures and Fittings - R&M","27/03/2018"
"Wolverhampton City Council","http://opendatacommunities.org/id/metropolitan-district-council/wolverhampton","TVLICENSING.CO.UK","147.00","Children & Family Contact Services","7392","Equipment - Hire","27/03/2018"
"Wolverhampton City Council","http://opendatacommunities.org/id/metropolitan-district-council/wolverhampton","Trainline","177.50","CIN/CP Social Work Unit - Area 4","4112","Section 17","27/03/2018"
"Wolverhampton City Council","http://opendatacommunities.org/id/metropolitan-district-council/wolverhampton","Trainline","93.40","CIN/CP Social Work Unit - Area 4","4112","Section 17","27/03/2018"
"Wolverhampton City Council","http://opendatacommunities.org/id/metropolitan-district-council/wolverhampton","Amazon UK Marketplace","6.49","EIP Locality 2","5942","Equipment - Purchase","27/03/2018"
"Wolverhampton City Council","http://opendatacommunities.org/id/metropolitan-district-council/wolverhampton","PREMIER INN","-17.98","Adoption and Residence Team & Allowances","3811","Accommodation Costs","27/03/2018"
"Wolverhampton City Council","http://opendatacommunities.org/id/metropolitan-district-council/wolverhampton","Amazon UK Marketplace","14.93","Adoption and Residence Team & Allowances","5942","Books","27/03/2018"
"Wolverhampton City Council","http://opendatacommunities.org/id/metropolitan-district-council/wolverhampton","Glasdir","55.00","Towers Outdoor Education Centre","8249","Equipment - Purchase","27/03/2018"
"Wolverhampton City Council","http://opendatacommunities.org/id/metropolitan-district-council/wolverhampton","WILKO RETAIL LIMIT","12.50","Technician","5722","Materials","26/03/2018"
"Wolverhampton City Council","http://opendatacommunities.org/id/metropolitan-district-council/wolverhampton","BIRMINGHAM ELECTRCL TR","145.00","Technician","8249","Training Expenses","26/03/2018"
"Wolverhampton City Council","http://opendatacommunities.org/id/metropolitan-district-council/wolverhampton","NATWEST BANK","200.00","EIP Locality 8","6011","Grant Payments","26/03/2018"
"Wolverhampton City Council","http://opendatacommunities.org/id/metropolitan-district-council/wolverhampton","000002200500000","100.00","Headstart Phase 3","6011","Financial Assistance In Exceptional Circ","26/03/2018"
"Wolverhampton City Council","http://opendatacommunities.org/id/metropolitan-district-council/wolverhampton","Amazon EU","10.20","Community Enablement","5969","Equipment - Purchase","26/03/2018"
"Wolverhampton City Council","http://opendatacommunities.org/id/metropolitan-district-council/wolverhampton","SAINSBURYS LOC4471","3.30","Mayoral Expenses","5411","Hospitality","26/03/2018"
"Wolverhampton City Council","http://opendatacommunities.org/id/metropolitan-district-council/wolverhampton","SCREWFIX WOLVERHAM","49.92","Cemeteries","5211","Materials","26/03/2018"
"Wolverhampton City Council","http://opendatacommunities.org/id/metropolitan-district-council/wolverhampton","POST OFFICE COUNTER","2.40","EIP Locality 3","9402","Comms - Postage","26/03/2018"
"Wolverhampton City Council","http://opendatacommunities.org/id/metropolitan-district-council/wolverhampton","ASDA GROCERIES ONLINE","5.00","Ernest Bold Court","5411","Provisions (Not for resale)","26/03/2018"
"Wolverhampton City Council","http://opendatacommunities.org/id/metropolitan-district-council/wolverhampton","ASDA GROCERIES ONLINE","68.23","Ernest Bold Court","5411","Provisions (Not for resale)","26/03/2018"
"Wolverhampton City Council","http://opendatacommunities.org/id/metropolitan-district-council/wolverhampton","PASS / LICENSE FEE","113.00","CIN/CP Social Work Unit - Area 4","7399","Section 17","26/03/2018"
"Wolverhampton City Council","http://opendatacommunities.org/id/metropolitan-district-council/wolverhampton","Trainline","45.60","Adoption and Residence Team & Allowances","4112","Public Transport","26/03/2018"
"Wolverhampton City Council","http://opendatacommunities.org/id/metropolitan-district-council/wolverhampton","WP-CENTRAL TAXIS L","432.00","Adoption and Residence Team & Allowances","4121","Client Transport","26/03/2018"
"Wolverhampton City Council","http://opendatacommunities.org/id/metropolitan-district-council/wolverhampton","Virgin Trains","151.70","Audit Services","4112","Public Transport","26/03/2018"
"Wolverhampton City Council","http://opendatacommunities.org/id/metropolitan-district-council/wolverhampton","WP-CENTRAL TAXIS L","143.40","Mental Health Assessment & Care Mgmt","4121","Client Transport","26/03/2018"
"Wolverhampton City Council","http://opendatacommunities.org/id/metropolitan-district-council/wolverhampton","MARKALLENGROUP.COM/MA-","115.00","New arrival","7399","Equipment - Purchase","26/03/2018"
"Wolverhampton City Council","http://opendatacommunities.org/id/metropolitan-district-council/wolverhampton","Trainline","55.80","New arrival","4112","Public Transport","26/03/2018"
"Wolverhampton City Council","http://opendatacommunities.org/id/metropolitan-district-council/wolverhampton","WWW.COFFEESUPPLIESDIRE","32.85","Archives","5331","Materials for resale","26/03/2018"
"Wolverhampton City Council","http://opendatacommunities.org/id/metropolitan-district-council/wolverhampton","POST OFFICE COUNTER","130.00","Panel Expenses Fostering & Adoption","9402","Comms - Postage","26/03/2018"
"Wolverhampton City Council","http://opendatacommunities.org/id/metropolitan-district-council/wolverhampton","CIEH","289.00","Private Sector Housing","8699","Training Expenses","26/03/2018"
"Wolverhampton City Council","http://opendatacommunities.org/id/metropolitan-district-council/wolverhampton","POUNDWORLD RETAIL","4.00","EIP Locality 1","5310","Equipment - Purchase","26/03/2018"
"Wolverhampton City Council","http://opendatacommunities.org/id/metropolitan-district-council/wolverhampton","123-REG.CO.UK","-11.99","Technical Support","4816","Computing - Purchase of Software","26/03/2018"
"Wolverhampton City Council","http://opendatacommunities.org/id/metropolitan-district-council/wolverhampton","PAYPAL  123REGLIMIT","19.98","Technical Support","4816","Computing - Purchase of Software","26/03/2018"
"Wolverhampton City Council","http://opendatacommunities.org/id/metropolitan-district-council/wolverhampton","WWW.HSS.COM","215.46","Technician","7394","Training Expenses","23/03/2018"
"Wolverhampton City Council","http://opendatacommunities.org/id/metropolitan-district-council/wolverhampton","WM MORRISON 024","5.10","EIP Locality 2","5411","Provisions (Not for resale)","23/03/2018"
"Wolverhampton City Council","http://opendatacommunities.org/id/metropolitan-district-council/wolverhampton","000002200500000","240.00","Childrens with Disabilities Team","6011","No Recourse to Public Funds","23/03/2018"
"Wolverhampton City Council","http://opendatacommunities.org/id/metropolitan-district-council/wolverhampton","POST OFFICE COUNTER","279.00","Adoption and Residence Team & Allowances","9402","Comms - Postage","23/03/2018"
"Wolverhampton City Council","http://opendatacommunities.org/id/metropolitan-district-council/wolverhampton","PREMIER INN","265.94","Adoption and Residence Team & Allowances","3811","Accommodation Costs","23/03/2018"
"Wolverhampton City Council","http://opendatacommunities.org/id/metropolitan-district-council/wolverhampton","000002200500000","240.00","CIN/CP Social Work Unit - Area 6","6011","Financial Assistance In Exceptional Circ","23/03/2018"
"Wolverhampton City Council","http://opendatacommunities.org/id/metropolitan-district-council/wolverhampton","DISPLAYSENSE.CO.UK","79.93","WV Active Marketing","5046","Equipment - Purchase","23/03/2018"
"Wolverhampton City Council","http://opendatacommunities.org/id/metropolitan-district-council/wolverhampton","CROMARTIE HOBBYCRAFT L","137.96","Communications & Marketing - General","5970","Materials","23/03/2018"
"Wolverhampton City Council","http://opendatacommunities.org/id/metropolitan-district-council/wolverhampton","A.B.C. COUNTDOWN CARS","12.00","IMPACT","4121","Client Transport","23/03/2018"
"Wolverhampton City Council","http://opendatacommunities.org/id/metropolitan-district-council/wolverhampton","A.B.C. COUNTDOWN CARS","15.00","IMPACT","4121","Client Transport","23/03/2018"
"Wolverhampton City Council","http://opendatacommunities.org/id/metropolitan-district-council/wolverhampton","SIGNHOLDERSDIRECT","231.95","Mayoral Expenses","7333","Equipment - Purchase","23/03/2018"
"Wolverhampton City Council","http://opendatacommunities.org/id/metropolitan-district-council/wolverhampton","WP-CENTRAL TAXIS L","-24.00","Adoption and Residence Team & Allowances","4121","Client Transport","23/03/2018"
"Wolverhampton City Council","http://opendatacommunities.org/id/metropolitan-district-council/wolverhampton","Virgin Trains","114.70","Environmental Health - Pub Prot - Gen","4112","Services - Fees and Charges","23/03/2018"
"Wolverhampton City Council","http://opendatacommunities.org/id/metropolitan-district-council/wolverhampton","LOYD WEDNESFIELD WOLVE","80.00","Duke Street Bungalows","6011","Provisions (Not for resale)","23/03/2018"
"Wolverhampton City Council","http://opendatacommunities.org/id/metropolitan-district-council/wolverhampton","J VAN VLIET BIRMINGHAM","11.25","Creative Studies Delivery Area","5399","Materials for resale","23/03/2018"
"Wolverhampton City Council","http://opendatacommunities.org/id/metropolitan-district-council/wolverhampton","SAINSBURYS","200.00","Duke Street Bungalows","6011","Provisions (Not for resale)","23/03/2018"
"Wolverhampton City Council","http://opendatacommunities.org/id/metropolitan-district-council/wolverhampton","SAINSBURYS","200.00","Duke Street Bungalows","6011","Provisions (Not for resale)","23/03/2018"
"Wolverhampton City Council","http://opendatacommunities.org/id/metropolitan-district-council/wolverhampton","Virgin Trains","91.20","Adoption and Residence Team & Allowances","4112","Public Transport","23/03/2018"
"Wolverhampton City Council","http://opendatacommunities.org/id/metropolitan-district-council/wolverhampton","ASDA GROCERIES ONLINE","-0.48","Upper Pendeford Farm Childrens Home","5411","Provisions (Not for resale)","23/03/2018"
"Wolverhampton City Council","http://opendatacommunities.org/id/metropolitan-district-council/wolverhampton","ASDA GROCERIES ONLINE","285.31","Upper Pendeford Farm Childrens Home","5411","Provisions (Not for resale)","23/03/2018"
"Wolverhampton City Council","http://opendatacommunities.org/id/metropolitan-district-council/wolverhampton","THE RANGE","18.83","LAC Transitions Team","5311","Client Allowances","23/03/2018"
"Wolverhampton City Council","http://opendatacommunities.org/id/metropolitan-district-council/wolverhampton","TIPPERS WOLVERHAMPTON","9.34","Culwell Street Depot","5072","R&M - Departmental planned (external)","23/03/2018"
"Wolverhampton City Council","http://opendatacommunities.org/id/metropolitan-district-council/wolverhampton","E01510300000000","200.00","MASH","6011","No Recourse to Public Funds","23/03/2018"
"Wolverhampton City Council","http://opendatacommunities.org/id/metropolitan-district-council/wolverhampton","Amazon Prime","7.99","Technical Support","5968","Subscriptions","23/03/2018"
"Wolverhampton City Council","http://opendatacommunities.org/id/metropolitan-district-council/wolverhampton","WILKO RETAIL LIMIT","5.42","Global Budgets","5722","Computing - Consumables","22/03/2018"
"Wolverhampton City Council","http://opendatacommunities.org/id/metropolitan-district-council/wolverhampton","Trainline","63.90","Safeguarding Admin Resource","4112","Public Transport","22/03/2018"
"Wolverhampton City Council","http://opendatacommunities.org/id/metropolitan-district-council/wolverhampton","LES MILLS FITNESS","45.83","Central Training","8220","Training Expenses","22/03/2018"
"Wolverhampton City Council","http://opendatacommunities.org/id/metropolitan-district-council/wolverhampton","Mimeo","308.76","School Improvement","7338","Printing","22/03/2018"
"Wolverhampton City Council","http://opendatacommunities.org/id/metropolitan-district-council/wolverhampton","Mimeo","83.76","School Improvement","7338","Printing","22/03/2018"
"Wolverhampton City Council","http://opendatacommunities.org/id/metropolitan-district-council/wolverhampton","Trainline","19.05","CIN/CP Social Work Unit - Area 8","4112","Public Transport","22/03/2018"
"Wolverhampton City Council","http://opendatacommunities.org/id/metropolitan-district-council/wolverhampton","Trainline","92.60","Adult Services - West","4112","Public Transport","22/03/2018"
"Wolverhampton City Council","http://opendatacommunities.org/id/metropolitan-district-council/wolverhampton","TESCO STORES 6667","2.30","Towers Outdoor Education Centre","5411","Provisions (Not for resale)","22/03/2018"
"Wolverhampton City Council","http://opendatacommunities.org/id/metropolitan-district-council/wolverhampton","Amazon UK Marketplace","98.13","Towers Outdoor Education Centre","5942","Fixtures and Fittings - Purchases","22/03/2018"
"Wolverhampton City Council","http://opendatacommunities.org/id/metropolitan-district-council/wolverhampton","CORPORATE MEDIA SUPPLI","210.00","Communications & Marketing - General","5947","Equipment - Purchase","22/03/2018"
"Wolverhampton City Council","http://opendatacommunities.org/id/metropolitan-district-council/wolverhampton","GLUTTONS FOR NOURISMEN","362.50","Headstart - Young People Engagement","5462","Catering","22/03/2018"
"Wolverhampton City Council","http://opendatacommunities.org/id/metropolitan-district-council/wolverhampton","WWW.LIFESAVERSDIRECT","58.00","Bert Williams Leisure Centre","5965","Equipment - Purchase","22/03/2018"
"Wolverhampton City Council","http://opendatacommunities.org/id/metropolitan-district-council/wolverhampton","POST OFFICE COUNTER","417.00","Adoption and Residence Team & Allowances","9402","Comms - Postage","22/03/2018"
"Wolverhampton City Council","http://opendatacommunities.org/id/metropolitan-district-council/wolverhampton","Amazon UK Marketplace","53.28","Strategic ICTS (ICT Serv Budget)","5942","Books","22/03/2018"
"Wolverhampton City Council","http://opendatacommunities.org/id/metropolitan-district-council/wolverhampton","Amazon UK Marketplace","107.46","Strategic ICTS (ICT Serv Budget)","5942","Books","22/03/2018"
"Wolverhampton City Council","http://opendatacommunities.org/id/metropolitan-district-council/wolverhampton","Amazon UK Marketplace","29.10","Strategic ICTS (ICT Serv Budget)","5942","Books","22/03/2018"
"Wolverhampton City Council","http://opendatacommunities.org/id/metropolitan-district-council/wolverhampton","WH SMITH","4.16","Headstart Phase 3","5994","Equipment - Purchase","22/03/2018"
"Wolverhampton City Council","http://opendatacommunities.org/id/metropolitan-district-council/wolverhampton","HOBBYCRAFT (INTERNET)","45.83","Connexions Contract","5970","Materials","22/03/2018"
"Wolverhampton City Council","http://opendatacommunities.org/id/metropolitan-district-council/wolverhampton","Amazon EU","38.79","EIP Locality 1","5969","Equipment - Purchase","22/03/2018"
"Wolverhampton City Council","http://opendatacommunities.org/id/metropolitan-district-council/wolverhampton","CARVER/WOLVERHAMPTON/L","59.32","Culwell Street Depot","5211","R&M - Departmental planned (external)","22/03/2018"
"Wolverhampton City Council","http://opendatacommunities.org/id/metropolitan-district-council/wolverhampton","Virgin Trains","36.30","Planning","4112","Public Transport","22/03/2018"
"Wolverhampton City Council","http://opendatacommunities.org/id/metropolitan-district-council/wolverhampton","123-REG.CO.UK","19.98","Technical Support","4816","Computing - Purchase of Software","22/03/2018"
"Wolverhampton City Council","http://opendatacommunities.org/id/metropolitan-district-council/wolverhampton","123-REG.CO.UK","11.99","Technical Support","4816","Computing - Purchase of Software","22/03/2018"
"Wolverhampton City Council","http://opendatacommunities.org/id/metropolitan-district-council/wolverhampton","PAYPAL  123REGLIMIT","107.91","Education Data Services","4816","Computing - Purchase of Software","22/03/2018"
"Wolverhampton City Council","http://opendatacommunities.org/id/metropolitan-district-council/wolverhampton","J VAN VLIET BIRMINGHAM","73.90","Creative Studies Delivery Area","5399","Materials for resale","21/03/2018"
"Wolverhampton City Council","http://opendatacommunities.org/id/metropolitan-district-council/wolverhampton","J VAN VLIET BIRMINGHAM","121.10","Creative Studies Delivery Area","5399","Materials","21/03/2018"
"Wolverhampton City Council","http://opendatacommunities.org/id/metropolitan-district-council/wolverhampton","J VAN VLIET BIRMINGHAM","68.25","Creative Studies Delivery Area","5399","Materials","21/03/2018"
"Wolverhampton City Council","http://opendatacommunities.org/id/metropolitan-district-council/wolverhampton","J VAN VLIET BIRMINGHAM","48.04","Creative Studies Delivery Area","5399","Materials for resale","21/03/2018"
"Wolverhampton City Council","http://opendatacommunities.org/id/metropolitan-district-council/wolverhampton","LOVE2SHOP.CO.UK","151.45","Public Health Support Costs","8641","Educ Trips, Holidays, Outings, Activity","21/03/2018"
"Wolverhampton City Council","http://opendatacommunities.org/id/metropolitan-district-council/wolverhampton","LOVE2SHOP.CO.UK","151.45","Public Health Support Costs","8641","Educ Trips, Holidays, Outings, Activity","21/03/2018"
"Wolverhampton City Council","http://opendatacommunities.org/id/metropolitan-district-council/wolverhampton","WP-CENTRAL TAXIS L","-36.00","Adoption and Residence Team & Allowances","4121","Client Transport","21/03/2018"
"Wolverhampton City Council","http://opendatacommunities.org/id/metropolitan-district-council/wolverhampton","SPORTSDIRECT.COM","36.97","Upper Pendeford Farm Childrens Home","5941","Equipment - Purchase","21/03/2018"
"Wolverhampton City Council","http://opendatacommunities.org/id/metropolitan-district-council/wolverhampton","Virgin Trains","62.40","LAC Team","4112","Public Transport","21/03/2018"
"Wolverhampton City Council","http://opendatacommunities.org/id/metropolitan-district-council/wolverhampton","E020539 0000000","60.00","Emergency Duty Team","6011","Financial Assistance In Exceptional Circ","21/03/2018"
"Wolverhampton City Council","http://opendatacommunities.org/id/metropolitan-district-council/wolverhampton","WM MORRISON FOOD.COM","87.94","Discretionary Fund","5411","Materials","21/03/2018"
"Wolverhampton City Council","http://opendatacommunities.org/id/metropolitan-district-council/wolverhampton","WWW.MDNSUPPLIES.CO.UK","61.87","Service Director Disab & Mental Health","5085","Equipment - Purchase","21/03/2018"
"Wolverhampton City Council","http://opendatacommunities.org/id/metropolitan-district-council/wolverhampton","Amazon UK Marketplace","17.90","Language Studies Delivery Area","5942","Equipment - Purchase","21/03/2018"
"Wolverhampton City Council","http://opendatacommunities.org/id/metropolitan-district-council/wolverhampton","Amazon EU","15.82","Headstart Phase 3","5969","Equipment - Purchase","21/03/2018"
"Wolverhampton City Council","http://opendatacommunities.org/id/metropolitan-district-council/wolverhampton","The Knowledge Academy","585.27","Headstart Phase 3","8249","Training Expenses","21/03/2018"
"Wolverhampton City Council","http://opendatacommunities.org/id/metropolitan-district-council/wolverhampton","CITB","25.00","IMPACT","8220","Services - Fees and Charges","21/03/2018"
"Wolverhampton City Council","http://opendatacommunities.org/id/metropolitan-district-council/wolverhampton","PROPERTY LINK PROF.SUR","140.00","LAC Transitions Team","7394","Client Allowances","21/03/2018"
"Wolverhampton City Council","http://opendatacommunities.org/id/metropolitan-district-council/wolverhampton","000002200500000","250.00","CIN/CP Social Work Unit - Area 6","6011","Section 17","21/03/2018"
"Wolverhampton City Council","http://opendatacommunities.org/id/metropolitan-district-council/wolverhampton","Virgin Trains","364.00","Adoption and Residence Team & Allowances","4112","Public Transport","21/03/2018"
"Wolverhampton City Council","http://opendatacommunities.org/id/metropolitan-district-council/wolverhampton","TESCO STORES 5194","144.15","Towers Outdoor Education Centre","5411","Provisions (Not for resale)","21/03/2018"
"Wolverhampton City Council","http://opendatacommunities.org/id/metropolitan-district-council/wolverhampton","Amazon UK Marketplace","13.32","Towers Outdoor Education Centre","5942","Fixtures and Fittings - Purchases","21/03/2018"
"Wolverhampton City Council","http://opendatacommunities.org/id/metropolitan-district-council/wolverhampton","Virgin Trains","166.70","Audit Services","4112","Public Transport","21/03/2018"
"Wolverhampton City Council","http://opendatacommunities.org/id/metropolitan-district-council/wolverhampton","Virgin Trains","62.40","Fostering Team & Allowances","4112","Public Transport","21/03/2018"
"Wolverhampton City Council","http://opendatacommunities.org/id/metropolitan-district-council/wolverhampton","Amazon UK Marketplace","39.98","Ground Maintenance East","5942","Computing - Consumables","21/03/2018"
"Wolverhampton City Council","http://opendatacommunities.org/id/metropolitan-district-council/wolverhampton","AMZ Rankie-Direct","-7.48","Headstart Phase 3","5999","Equipment - Purchase","21/03/2018"
"Wolverhampton City Council","http://opendatacommunities.org/id/metropolitan-district-council/wolverhampton","WEST MID TRAVEL","526.65","IMPACT","4131","Public Transport","21/03/2018"
"Wolverhampton City Council","http://opendatacommunities.org/id/metropolitan-district-council/wolverhampton","Amazon UK Marketplace","1.47","Education Business Partnership","5942","Books","21/03/2018"
"Wolverhampton City Council","http://opendatacommunities.org/id/metropolitan-district-council/wolverhampton","Amazon UK Marketplace","109.96","AES Staff Development","5942","Equipment - Purchase","21/03/2018"
"Wolverhampton City Council","http://opendatacommunities.org/id/metropolitan-district-council/wolverhampton","NOVOTEL HOTELS","113.83","The Clangers & TV Puppets","3642","Accommodation Costs","21/03/2018"
"Wolverhampton City Council","http://opendatacommunities.org/id/metropolitan-district-council/wolverhampton","Virgin Trains","53.50","The Clangers & TV Puppets","4112","Public Transport","21/03/2018"
"Wolverhampton City Council","http://opendatacommunities.org/id/metropolitan-district-council/wolverhampton","B&M RETAIL","43.33","LAC Transitions Team","5310","Client Allowances","21/03/2018"
"Wolverhampton City Council","http://opendatacommunities.org/id/metropolitan-district-council/wolverhampton","Amazon UK Marketplace","10.32","EIP Locality 1","5942","Books","21/03/2018"
"Wolverhampton City Council","http://opendatacommunities.org/id/metropolitan-district-council/wolverhampton","TOOLSTATION LTD","2.67","Culwell Street Depot","5251","Equipment - Purchase","21/03/2018"
"Wolverhampton City Council","http://opendatacommunities.org/id/metropolitan-district-council/wolverhampton","WWW.ARGOS.CO.UK","-74.99","Learning Disabilities Management","5310","Equipment - Purchase","21/03/2018"
"Wolverhampton City Council","http://opendatacommunities.org/id/metropolitan-district-council/wolverhampton","WWW.ARGOS.CO.UK","208.32","Learning Disabilities Management","5310","Equipment - Purchase","21/03/2018"
"Wolverhampton City Council","http://opendatacommunities.org/id/metropolitan-district-council/wolverhampton","Amazon UK Marketplace","2.49","Blakenhall Commty & Healthy Living Ctr","5942","Stationery","21/03/2018"
"Wolverhampton City Council","http://opendatacommunities.org/id/metropolitan-district-council/wolverhampton","Amazon UK Marketplace","3.71","Global Budgets","5942","Books","21/03/2018"
"Wolverhampton City Council","http://opendatacommunities.org/id/metropolitan-district-council/wolverhampton","Amazon UK Marketplace","22.08","Global Budgets","5942","Stationery","21/03/2018"
"Wolverhampton City Council","http://opendatacommunities.org/id/metropolitan-district-council/wolverhampton","B & Q 1243","16.67","Bradley Resource Centre","5211","Equipment - R & M","21/03/2018"
"Wolverhampton City Council","http://opendatacommunities.org/id/metropolitan-district-council/wolverhampton","HERON FOODS LTD","7.58","Ernest Bold Court","5499","Catering","21/03/2018"
"Wolverhampton City Council","http://opendatacommunities.org/id/metropolitan-district-council/wolverhampton","Trainline","5.35","Head of Service - LAC","4112","Public Transport","21/03/2018"
"Wolverhampton City Council","http://opendatacommunities.org/id/metropolitan-district-council/wolverhampton","Trainline","156.70","Head of Service - LAC","4112","Public Transport","21/03/2018"
"Wolverhampton City Council","http://opendatacommunities.org/id/metropolitan-district-council/wolverhampton","Trainline","68.40","Service Director Older People","4112","Public Transport","21/03/2018"
"Wolverhampton City Council","http://opendatacommunities.org/id/metropolitan-district-council/wolverhampton","CUMMINGS BROTHERS LOCK","162.00","Culwell Street Depot","7399","R&M - Departmental planned (external)","20/03/2018"
"Wolverhampton City Council","http://opendatacommunities.org/id/metropolitan-district-council/wolverhampton","TOOLSTATION LTD","6.49","Culwell Street Depot","5251","Equipment - Purchase","20/03/2018"
"Wolverhampton City Council","http://opendatacommunities.org/id/metropolitan-district-council/wolverhampton","TOOLSTATION LTD","8.80","Culwell Street Depot","5251","Equipment - Purchase","20/03/2018"
"Wolverhampton City Council","http://opendatacommunities.org/id/metropolitan-district-council/wolverhampton","BARONS COURT HOTEL","-185.00","MASH","7011","Section 17","20/03/2018"
"Wolverhampton City Council","http://opendatacommunities.org/id/metropolitan-district-council/wolverhampton","BARONS COURT HOTEL","320.83","MASH","7011","Section 17","20/03/2018"
"Wolverhampton City Council","http://opendatacommunities.org/id/metropolitan-district-council/wolverhampton","W V HOWE LTD","36.36","Blakenhall Commty & Healthy Living Ctr","5072","Equipment - Purchase","20/03/2018"
"Wolverhampton City Council","http://opendatacommunities.org/id/metropolitan-district-council/wolverhampton","123-REG.CO.UK","20.96","Technical Support","4816","Computing - Purchase of Software","20/03/2018"
"Wolverhampton City Council","http://opendatacommunities.org/id/metropolitan-district-council/wolverhampton","WICKES","5.00","Specialist Support Service - North","5211","Equipment - R & M","20/03/2018"
"Wolverhampton City Council","http://opendatacommunities.org/id/metropolitan-district-council/wolverhampton","ASDA HOME SHOPPING","72.52","Ernest Bold Court","5411","Provisions (Not for resale)","20/03/2018"
"Wolverhampton City Council","http://opendatacommunities.org/id/metropolitan-district-council/wolverhampton","Trainline","353.50","CIN/CP Social Work Unit - Area 5","4112","No Recourse to Public Funds","20/03/2018"
"Wolverhampton City Council","http://opendatacommunities.org/id/metropolitan-district-council/wolverhampton","THE NEW BRIDGE GUEST H","-50.00","CIN/CP Social Work Unit - Area 4","7011","Section 17","20/03/2018"
"Wolverhampton City Council","http://opendatacommunities.org/id/metropolitan-district-council/wolverhampton","THE POST OFFICE","14.52","CIN/CP Social Work Unit - Area 4","9402","Section 17","20/03/2018"
"Wolverhampton City Council","http://opendatacommunities.org/id/metropolitan-district-council/wolverhampton","Trainline","292.50","CIN/CP Social Work Unit - Area 4","4112","Public Transport","20/03/2018"
"Wolverhampton City Council","http://opendatacommunities.org/id/metropolitan-district-council/wolverhampton","WESTMINSTER FORUM","230.00","Workforce Development","7392","Training Expenses","20/03/2018"
"Wolverhampton City Council","http://opendatacommunities.org/id/metropolitan-district-council/wolverhampton","NO 5 CHAMBERS LTD","185.00","Central Training","8111","Services - Professional Fees","20/03/2018"
"Wolverhampton City Council","http://opendatacommunities.org/id/metropolitan-district-council/wolverhampton","DIRECT LINEN TEXTILES","54.90","Mayoral Expenses","5949","Materials","20/03/2018"
"Wolverhampton City Council","http://opendatacommunities.org/id/metropolitan-district-council/wolverhampton","PAYPAL  THEROTA","508.14","Civic Halls Non Direct Management A/C","5735","Computing - Purchase of Software","20/03/2018"
"Wolverhampton City Council","http://opendatacommunities.org/id/metropolitan-district-council/wolverhampton","TESCO STORES 6667","2.99","Towers Outdoor Education Centre","5411","Provisions (Not for resale)","20/03/2018"
"Wolverhampton City Council","http://opendatacommunities.org/id/metropolitan-district-council/wolverhampton","Amazon UK Marketplace","8.08","Towers Outdoor Education Centre","5942","Equipment - Purchase","20/03/2018"
"Wolverhampton City Council","http://opendatacommunities.org/id/metropolitan-district-council/wolverhampton","WOLVERHAMPTON CC","2.50","Headstart - Young People Engagement","7523","Parking Fees","20/03/2018"
"Wolverhampton City Council","http://opendatacommunities.org/id/metropolitan-district-council/wolverhampton","WOLVERHAMPTON CC","4.58","IMPACT","7523","Car Allowances","20/03/2018"
"Wolverhampton City Council","http://opendatacommunities.org/id/metropolitan-district-council/wolverhampton","BEAR HOTEL","43.75","IMPACT","5813","Educ Trips, Holidays, Outings, Activity","20/03/2018"
"Wolverhampton City Council","http://opendatacommunities.org/id/metropolitan-district-council/wolverhampton","WEST COAST TRAINS","89.50","IMPACT","4112","Public Transport","20/03/2018"
"Wolverhampton City Council","http://opendatacommunities.org/id/metropolitan-district-council/wolverhampton","SUNSEEKERS","5.40","IMPACT","4121","Client Transport","20/03/2018"
"Wolverhampton City Council","http://opendatacommunities.org/id/metropolitan-district-council/wolverhampton","Trainline","-45.60","Admin & Support","4112","Public Transport","20/03/2018"
"Wolverhampton City Council","http://opendatacommunities.org/id/metropolitan-district-council/wolverhampton","DUNELM (SOFT FURNISHIN","49.98","LAC Transitions Team","5714","Client Allowances","20/03/2018"
"Wolverhampton City Council","http://opendatacommunities.org/id/metropolitan-district-council/wolverhampton","Amazon UK Marketplace","24.99","Strategic ICTS (ICT Serv Budget)","5942","Computing - Consumables","20/03/2018"
"Wolverhampton City Council","http://opendatacommunities.org/id/metropolitan-district-council/wolverhampton","Trainline","142.50","Director of Education","4112","Public Transport","20/03/2018"
"Wolverhampton City Council","http://opendatacommunities.org/id/metropolitan-district-council/wolverhampton","DACS LTD","60.00","Supporting Local Artists","5971","Services - General Licences","19/03/2018"
"Wolverhampton City Council","http://opendatacommunities.org/id/metropolitan-district-council/wolverhampton","YMLP.COM","105.00","Audience Development","7372","Marketing \ Non-staff advertising","19/03/2018"
"Wolverhampton City Council","http://opendatacommunities.org/id/metropolitan-district-council/wolverhampton","PREMIER INN","215.97","Adoption and Residence Team & Allowances","3811","Accommodation Costs","19/03/2018"
"Wolverhampton City Council","http://opendatacommunities.org/id/metropolitan-district-council/wolverhampton","PREMIER INN","462.40","Adoption and Residence Team & Allowances","3811","Accommodation Costs","19/03/2018"
"Wolverhampton City Council","http://opendatacommunities.org/id/metropolitan-district-council/wolverhampton","HIMLEY HOUSE H","-392.40","Adoption and Residence Team & Allowances","7011","Accommodation Costs","19/03/2018"
"Wolverhampton City Council","http://opendatacommunities.org/id/metropolitan-district-council/wolverhampton","PREMIER INN","362.92","Adoption and Residence Team & Allowances","3811","Accommodation Costs","19/03/2018"
"Wolverhampton City Council","http://opendatacommunities.org/id/metropolitan-district-council/wolverhampton","FACEBK KMYWLF6AR2","43.00","Communications & Marketing - General","7311","Marketing \ Non-staff advertising","19/03/2018"
"Wolverhampton City Council","http://opendatacommunities.org/id/metropolitan-district-council/wolverhampton","FACEBK BMYWLF6AR2","457.00","Communications & Marketing - General","7311","Marketing \ Non-staff advertising","19/03/2018"
"Wolverhampton City Council","http://opendatacommunities.org/id/metropolitan-district-council/wolverhampton","WOLVERHAMPTON CC","10.42","IMPACT","7523","Car Allowances","19/03/2018"
"Wolverhampton City Council","http://opendatacommunities.org/id/metropolitan-district-council/wolverhampton","INSTITUTION OF CHEMICA","160.00","IMPACT","8398","Services - Supplies & Services to users","19/03/2018"
"Wolverhampton City Council","http://opendatacommunities.org/id/metropolitan-district-council/wolverhampton","Amazon UK Marketplace","10.62","Education Business Partnership","5942","Books","19/03/2018"
"Wolverhampton City Council","http://opendatacommunities.org/id/metropolitan-district-council/wolverhampton","Wix.com","93.13","Technical Support","5817","Computing - Purchase of Software","19/03/2018"
"Wolverhampton City Council","http://opendatacommunities.org/id/metropolitan-district-council/wolverhampton","E01577600000000","20.00","EIP Locality 3","6011","Grant Payments","19/03/2018"
"Wolverhampton City Council","http://opendatacommunities.org/id/metropolitan-district-council/wolverhampton","ASDA GEORGE COM LEEDS","-53.88","LAC Transitions Team","5411","Client Allowances","19/03/2018"
"Wolverhampton City Council","http://opendatacommunities.org/id/metropolitan-district-council/wolverhampton","ASDA HOME SHOPPING","-0.42","Ernest Bold Court","5411","Provisions (Not for resale)","19/03/2018"
"Wolverhampton City Council","http://opendatacommunities.org/id/metropolitan-district-council/wolverhampton","ASDA HOME SHOPPING","90.22","Ernest Bold Court","5411","Provisions (Not for resale)","19/03/2018"
"Wolverhampton City Council","http://opendatacommunities.org/id/metropolitan-district-council/wolverhampton","BRITISH STANDARDS","102.00","Environmental Health - Pub Prot - Gen","7399","Equipment - Purchase","19/03/2018"
"Wolverhampton City Council","http://opendatacommunities.org/id/metropolitan-district-council/wolverhampton","NCC INCOME","12.00","CIN/CP Social Work Unit - Area 5","9399","Section 17","19/03/2018"
"Wolverhampton City Council","http://opendatacommunities.org/id/metropolitan-district-council/wolverhampton","AUTORITE INDUSTRIE","395.00","Fleet Management","7538","Services - Professional Fees","19/03/2018"
"Wolverhampton City Council","http://opendatacommunities.org/id/metropolitan-district-council/wolverhampton","Trainline","200.95","CIN/CP Social Work Unit - Area 4","4112","Section 17","19/03/2018"
"Wolverhampton City Council","http://opendatacommunities.org/id/metropolitan-district-council/wolverhampton","THE READING AGENCY","36.66","Global Budgets","2791","","19/03/2018"
"Wolverhampton City Council","http://opendatacommunities.org/id/metropolitan-district-council/wolverhampton","Amazon UK Marketplace","39.06","Members Expenses","5942","Equipment - Purchase","19/03/2018"
"Wolverhampton City Council","http://opendatacommunities.org/id/metropolitan-district-council/wolverhampton","WISEPOPS","52.48","City Direct","7372","Computing - Purchase of Software","19/03/2018"
"Wolverhampton City Council","http://opendatacommunities.org/id/metropolitan-district-council/wolverhampton","Amazon EU","41.43","Document Centre - General","5969","Equipment - Purchase","19/03/2018"
"Wolverhampton City Council","http://opendatacommunities.org/id/metropolitan-district-council/wolverhampton","VUE ITCERTIFICATIONVUE","113.00","Strategic ICTS (ICT Serv Budget)","8299","Training Expenses","19/03/2018"
"Wolverhampton City Council","http://opendatacommunities.org/id/metropolitan-district-council/wolverhampton","Amazon EU","36.87","Creative Studies Delivery Area","5969","Equipment - Purchase","19/03/2018"
"Wolverhampton City Council","http://opendatacommunities.org/id/metropolitan-district-council/wolverhampton","Amazon EU","42.93","Creative Studies Delivery Area","5969","Books","19/03/2018"
"Wolverhampton City Council","http://opendatacommunities.org/id/metropolitan-district-council/wolverhampton","Amazon UK Marketplace","36.95","Language Studies Delivery Area","5942","Computing - Purchase of Hardware","19/03/2018"
"Wolverhampton City Council","http://opendatacommunities.org/id/metropolitan-district-council/wolverhampton","Amazon UK Marketplace","33.98","Language Studies Delivery Area","5942","Computing - Purchase of Hardware","19/03/2018"
"Wolverhampton City Council","http://opendatacommunities.org/id/metropolitan-district-council/wolverhampton","Amazon UK Marketplace","19.50","Creative Studies Delivery Area","5942","Equipment - Purchase","19/03/2018"
"Wolverhampton City Council","http://opendatacommunities.org/id/metropolitan-district-council/wolverhampton","Amazon Svcs Europe,SAR","4.10","Creative Studies Delivery Area","5942","Equipment - Purchase","19/03/2018"
"Wolverhampton City Council","http://opendatacommunities.org/id/metropolitan-district-council/wolverhampton","Amazon UK Marketplace","5.57","Creative Studies Delivery Area","5942","Books","19/03/2018"
"Wolverhampton City Council","http://opendatacommunities.org/id/metropolitan-district-council/wolverhampton","NATIONAL EXPRESS LIMIT","40.80","CIN/CP Social Work Unit - Area 2","4131","Public Transport","19/03/2018"
"Wolverhampton City Council","http://opendatacommunities.org/id/metropolitan-district-council/wolverhampton","Virgin Trains","53.00","LAC Team","4112","Public Transport","19/03/2018"
"Wolverhampton City Council","http://opendatacommunities.org/id/metropolitan-district-council/wolverhampton","WP-THE CRATFS COUNCIL","37.00","Creative Studies Delivery Area","8398","Subscriptions","16/03/2018"
"Wolverhampton City Council","http://opendatacommunities.org/id/metropolitan-district-council/wolverhampton","Amazon UK Marketplace","20.98","Service Wide","5942","Equipment - Purchase","16/03/2018"
"Wolverhampton City Council","http://opendatacommunities.org/id/metropolitan-district-council/wolverhampton","WOLVERHAMPTON CC","8.33","Headstart Phase 3","7523","Parking Fees","16/03/2018"
"Wolverhampton City Council","http://opendatacommunities.org/id/metropolitan-district-council/wolverhampton","AMZ Blooming Artificia","-3.33","EIP Locality 1","5999","Equipment - Purchase","16/03/2018"
"Wolverhampton City Council","http://opendatacommunities.org/id/metropolitan-district-council/wolverhampton","E01510300000000","200.00","MASH","6011","Section 17","16/03/2018"
"Wolverhampton City Council","http://opendatacommunities.org/id/metropolitan-district-council/wolverhampton","Trainline","19.45","SEN Special Education Admin","4112","Public Transport","16/03/2018"
"Wolverhampton City Council","http://opendatacommunities.org/id/metropolitan-district-council/wolverhampton","MARKS&SPENCER PLC SACA","41.05","Children & Young People Support Costs","5411","Provisions (Not for resale)","16/03/2018"
"Wolverhampton City Council","http://opendatacommunities.org/id/metropolitan-district-council/wolverhampton","WICKES","19.55","Community Enablement","5211","Equipment - R & M","16/03/2018"
"Wolverhampton City Council","http://opendatacommunities.org/id/metropolitan-district-council/wolverhampton","WP-CENTRAL TAXIS L","187.20","LAC Team","4121","Client Transport","16/03/2018"
"Wolverhampton City Council","http://opendatacommunities.org/id/metropolitan-district-council/wolverhampton","ASDA GEORGE COM LEEDS","-23.62","LAC Transitions Team","5411","Client Allowances","16/03/2018"
"Wolverhampton City Council","http://opendatacommunities.org/id/metropolitan-district-council/wolverhampton","Amazon Digital Dwnlds","0.99","Central Training","5735","Books","16/03/2018"
"Wolverhampton City Council","http://opendatacommunities.org/id/metropolitan-district-council/wolverhampton","Trainline","24.95","Legal Services","4112","Public Transport","16/03/2018"
"Wolverhampton City Council","http://opendatacommunities.org/id/metropolitan-district-council/wolverhampton","healthmarket8552818099","150.03","Collections","5499","Catering","16/03/2018"
"Wolverhampton City Council","http://opendatacommunities.org/id/metropolitan-district-council/wolverhampton","SPRBALIFE 8003013257","125.63","Collections","5499","Catering","16/03/2018"
"Wolverhampton City Council","http://opendatacommunities.org/id/metropolitan-district-council/wolverhampton","REGAL CARPETS AND FURN","350.00","LAC Transitions Team","5713","Client Allowances","16/03/2018"
"Wolverhampton City Council","http://opendatacommunities.org/id/metropolitan-district-council/wolverhampton","000002200500000","140.00","Childrens with Disabilities Team","6011","Section 17","16/03/2018"
"Wolverhampton City Council","http://opendatacommunities.org/id/metropolitan-district-council/wolverhampton","000002200500000","200.00","Childrens with Disabilities Team","6011","No Recourse to Public Funds","16/03/2018"
"Wolverhampton City Council","http://opendatacommunities.org/id/metropolitan-district-council/wolverhampton","EE & T-MOBILE","257.43","Civic Halls Non Direct Management A/C","4814","Comms - Telephone Call charges","16/03/2018"
"Wolverhampton City Council","http://opendatacommunities.org/id/metropolitan-district-council/wolverhampton","BT PAY BY PHONE","218.70","Makers Dozen","4814","Comms - Telephone Call charges","16/03/2018"
"Wolverhampton City Council","http://opendatacommunities.org/id/metropolitan-district-council/wolverhampton","BT PAY BY PHONE","216.03","Art Gallery","4814","Comms - Telephone Call charges","16/03/2018"
"Wolverhampton City Council","http://opendatacommunities.org/id/metropolitan-district-council/wolverhampton","VIRGIN MEDIS PYMTS","192.00","Civic Halls Non Direct Management A/C","4814","Comms - Telephone Call charges","16/03/2018"
"Wolverhampton City Council","http://opendatacommunities.org/id/metropolitan-district-council/wolverhampton","VIRGIN MEDIS PYMTS","225.00","Civic Halls Non Direct Management A/C","4814","Comms - Telephone Call charges","16/03/2018"
"Wolverhampton City Council","http://opendatacommunities.org/id/metropolitan-district-council/wolverhampton","CO-OP GROUP 070228","10.50","Towers Outdoor Education Centre","5411","Provisions (Not for resale)","16/03/2018"
"Wolverhampton City Council","http://opendatacommunities.org/id/metropolitan-district-council/wolverhampton","O E METCALFE","224.19","Towers Outdoor Education Centre","5499","Provisions (Not for resale)","16/03/2018"
"Wolverhampton City Council","http://opendatacommunities.org/id/metropolitan-district-council/wolverhampton","COTSWOLD OUTDOOR","28.76","Towers Outdoor Education Centre","5999","Equipment - Purchase","16/03/2018"
"Wolverhampton City Council","http://opendatacommunities.org/id/metropolitan-district-council/wolverhampton","000002200500000","250.00","CIN/CP Social Work Unit - Area 6","6011","Financial Assistance In Exceptional Circ","16/03/2018"
"Wolverhampton City Council","http://opendatacommunities.org/id/metropolitan-district-council/wolverhampton","WWW.SALON-SERVICES.COM","829.87","IMPACT","7230","Equipment - Purchase","16/03/2018"
"Wolverhampton City Council","http://opendatacommunities.org/id/metropolitan-district-council/wolverhampton","WEST COAST TRAINS","65.20","IMPACT","4112","Public Transport","16/03/2018"
"Wolverhampton City Council","http://opendatacommunities.org/id/metropolitan-district-council/wolverhampton","FOREST EXECUTIVE CARS","30.00","IMPACT","4121","Client Transport","16/03/2018"
"Wolverhampton City Council","http://opendatacommunities.org/id/metropolitan-district-council/wolverhampton","Amazon UK Marketplace","4.90","Education Business Partnership","5942","Books","16/03/2018"
"Wolverhampton City Council","http://opendatacommunities.org/id/metropolitan-district-council/wolverhampton","SAINSBURYS PFS (1340)","1.67","Mayoral Expenses","5541","Vehicle Maintenance - Repairs","16/03/2018"
"Wolverhampton City Council","http://opendatacommunities.org/id/metropolitan-district-council/wolverhampton","NAMESCO","2.99","City Direct","4816","Computing - Purchase of Software","16/03/2018"
"Wolverhampton City Council","http://opendatacommunities.org/id/metropolitan-district-council/wolverhampton","WP-CENTRAL TAXIS L","148.92","LAC Education Team (LACE)","4121","Client Transport","16/03/2018"
"Wolverhampton City Council","http://opendatacommunities.org/id/metropolitan-district-council/wolverhampton","TA BOM","74.91","Strategic Director Place","5812","Conference Expenses","16/03/2018"
"Wolverhampton City Council","http://opendatacommunities.org/id/metropolitan-district-council/wolverhampton","THE MOUNT HOTEL","62.50","Strategic Director People","7011","Services - Supplies & Services to users","16/03/2018"
"Wolverhampton City Council","http://opendatacommunities.org/id/metropolitan-district-council/wolverhampton","SCREWFIX DIRECT","115.77","Creative Studies Delivery Area","5211","Equipment - Purchase","16/03/2018"
"Wolverhampton City Council","http://opendatacommunities.org/id/metropolitan-district-council/wolverhampton","Amazon UK Marketplace","157.07","Creative Studies Delivery Area","5942","Equipment - Purchase","16/03/2018"
"Wolverhampton City Council","http://opendatacommunities.org/id/metropolitan-district-council/wolverhampton","WWW.BRISTOWSUTOR.C","48.33","Fostering Team & Allowances","9399","Services - Fees and Charges","16/03/2018"
"Wolverhampton City Council","http://opendatacommunities.org/id/metropolitan-district-council/wolverhampton","SUK RETAIL LTD","42.27","Adoption and Residence Team & Allowances","5943","Stationery","16/03/2018"
"Wolverhampton City Council","http://opendatacommunities.org/id/metropolitan-district-council/wolverhampton","THE RANGE","16.66","Adoption and Residence Team & Allowances","5311","Equipment - Purchase","16/03/2018"
"Wolverhampton City Council","http://opendatacommunities.org/id/metropolitan-district-council/wolverhampton","MYPROTEIN.COM","95.18","WV Active Marketing","5399","Equipment - Purchase","16/03/2018"
"Wolverhampton City Council","http://opendatacommunities.org/id/metropolitan-district-council/wolverhampton","Amazon Prime","6.66","Headstart - Young People Engagement","5968","Subscriptions","16/03/2018"
"Wolverhampton City Council","http://opendatacommunities.org/id/metropolitan-district-council/wolverhampton","HILTON","75.00","IMPACT","3504","Conference Expenses","16/03/2018"
"Wolverhampton City Council","http://opendatacommunities.org/id/metropolitan-district-council/wolverhampton","DUDLEY MET CNL ATP","15.50","IMPACT","7999","Educ Trips, Holidays, Outings, Activity","16/03/2018"
"Wolverhampton City Council","http://opendatacommunities.org/id/metropolitan-district-council/wolverhampton","Amazon UK Marketplace","2.00","Creative Studies Delivery Area","5942","Equipment - Purchase","16/03/2018"
"Wolverhampton City Council","http://opendatacommunities.org/id/metropolitan-district-council/wolverhampton","ROYALBHAMSOCARTIST","50.00","Education And Access","5971","Services - Professional Fees","15/03/2018"
"Wolverhampton City Council","http://opendatacommunities.org/id/metropolitan-district-council/wolverhampton","GRO HM PASSPORT OFFICE","-9.25","LAC Team","9399","Financial Assistance In Exceptional Circ","15/03/2018"
"Wolverhampton City Council","http://opendatacommunities.org/id/metropolitan-district-council/wolverhampton","NATWEST BANK","200.00","Democratic Support","6011","Public Transport","15/03/2018"
"Wolverhampton City Council","http://opendatacommunities.org/id/metropolitan-district-council/wolverhampton","WWW.ARGOS.CO.UK","333.32","The Maltings","5310","Equipment - Purchase","15/03/2018"
"Wolverhampton City Council","http://opendatacommunities.org/id/metropolitan-district-council/wolverhampton","BRITANNIA","45.83","CIN/CP Social Work Unit - Area 5","7011","Section 17","15/03/2018"
"Wolverhampton City Council","http://opendatacommunities.org/id/metropolitan-district-council/wolverhampton","Trainline","145.50","Parking Enforcement","4112","Public Transport","15/03/2018"
"Wolverhampton City Council","http://opendatacommunities.org/id/metropolitan-district-council/wolverhampton","ASDA SUPERSTORE","50.00","CIN/CP Social Work Unit - Area 4","5411","Section 17","15/03/2018"
"Wolverhampton City Council","http://opendatacommunities.org/id/metropolitan-district-council/wolverhampton","ASDA SUPERSTORE","100.00","CIN/CP Social Work Unit - Area 4","5411","Section 17","15/03/2018"
"Wolverhampton City Council","http://opendatacommunities.org/id/metropolitan-district-council/wolverhampton","ASDA SUPERSTORE","200.00","CIN/CP Social Work Unit - Area 4","5411","Section 17","15/03/2018"
"Wolverhampton City Council","http://opendatacommunities.org/id/metropolitan-district-council/wolverhampton","Trainline","55.30","CIN/CP Social Work Unit - Area 7","4112","Section 17","15/03/2018"
"Wolverhampton City Council","http://opendatacommunities.org/id/metropolitan-district-council/wolverhampton","WWW.ADASS.ORG.UK","190.00","Workforce Development","8398","Training Expenses","15/03/2018"
"Wolverhampton City Council","http://opendatacommunities.org/id/metropolitan-district-council/wolverhampton","WESTACRES","87.17","Parent / Partnership Service","5812","Educ Trips, Holidays, Outings, Activity","15/03/2018"
"Wolverhampton City Council","http://opendatacommunities.org/id/metropolitan-district-council/wolverhampton","J VAN VLIET BIRMINGHAM","108.33","Creative Studies Delivery Area","5399","Materials for resale","15/03/2018"
"Wolverhampton City Council","http://opendatacommunities.org/id/metropolitan-district-council/wolverhampton","CLARKS.CO.UK","165.00","Passenger Transport - General","5661","Protective Clothing","15/03/2018"
"Wolverhampton City Council","http://opendatacommunities.org/id/metropolitan-district-council/wolverhampton","Trainline","35.70","Music Support Team","4112","Services - Professional Fees","15/03/2018"
"Wolverhampton City Council","http://opendatacommunities.org/id/metropolitan-district-council/wolverhampton","ROYAL BK OF SCOTLAND","200.00","Duke Street Bungalows","6011","Provisions (Not for resale)","15/03/2018"
"Wolverhampton City Council","http://opendatacommunities.org/id/metropolitan-district-council/wolverhampton","Virgin Trains","177.00","Adoption and Residence Team & Allowances","4112","Public Transport","15/03/2018"
"Wolverhampton City Council","http://opendatacommunities.org/id/metropolitan-district-council/wolverhampton","GRO HM PASSPORT OFFICE","7.71","LAC Transitions Team","9399","Client Allowances","15/03/2018"
"Wolverhampton City Council","http://opendatacommunities.org/id/metropolitan-district-council/wolverhampton","Trainline","79.10","Director of Governance","4112","Public Transport","15/03/2018"
"Wolverhampton City Council","http://opendatacommunities.org/id/metropolitan-district-council/wolverhampton","NATIONWIDE","250.00","EIP Locality 2","6011","Provisions (Not for resale)","15/03/2018"
"Wolverhampton City Council","http://opendatacommunities.org/id/metropolitan-district-council/wolverhampton","HIMLEY HOUSE H","392.40","Adoption and Residence Team & Allowances","7011","Accommodation Costs","15/03/2018"
"Wolverhampton City Council","http://opendatacommunities.org/id/metropolitan-district-council/wolverhampton","TESCO STORES 5194","65.06","Towers Outdoor Education Centre","5411","Provisions (Not for resale)","15/03/2018"
"Wolverhampton City Council","http://opendatacommunities.org/id/metropolitan-district-council/wolverhampton","Amazon UK Marketplace","2.19","Towers Outdoor Education Centre","5942","Fixtures and Fittings - Purchases","15/03/2018"
"Wolverhampton City Council","http://opendatacommunities.org/id/metropolitan-district-council/wolverhampton","Virgin Trains","62.40","LAC Team","4112","Public Transport","15/03/2018"
"Wolverhampton City Council","http://opendatacommunities.org/id/metropolitan-district-council/wolverhampton","Amazon UK Marketplace","155.26","Discretionary Fund","5942","Computing - Purchase of Hardware","15/03/2018"
"Wolverhampton City Council","http://opendatacommunities.org/id/metropolitan-district-council/wolverhampton","Amazon EU","61.67","Creative Studies Delivery Area","5969","Equipment - Purchase","15/03/2018"
"Wolverhampton City Council","http://opendatacommunities.org/id/metropolitan-district-council/wolverhampton","Amazon UK Marketplace","92.74","Director of Education","5942","Computing - Purchase of Hardware","15/03/2018"
"Wolverhampton City Council","http://opendatacommunities.org/id/metropolitan-district-council/wolverhampton","Amazon UK Marketplace","77.11","Discretionary Fund","5942","Computing - Purchase of Hardware","15/03/2018"
"Wolverhampton City Council","http://opendatacommunities.org/id/metropolitan-district-council/wolverhampton","Amazon UK Marketplace","13.40","Creative Studies Delivery Area","5942","Equipment - Purchase","15/03/2018"
"Wolverhampton City Council","http://opendatacommunities.org/id/metropolitan-district-council/wolverhampton","Amazon UK Marketplace","95.42","Language Studies Delivery Area","5942","Computing - Purchase of Hardware","15/03/2018"
"Wolverhampton City Council","http://opendatacommunities.org/id/metropolitan-district-council/wolverhampton","Amazon UK Marketplace","11.00","Creative Studies Delivery Area","5942","Equipment - Purchase","15/03/2018"
"Wolverhampton City Council","http://opendatacommunities.org/id/metropolitan-district-council/wolverhampton","WWW.ARGOS.CO.UK","234.30","MASH","5310","Section 17","15/03/2018"
"Wolverhampton City Council","http://opendatacommunities.org/id/metropolitan-district-council/wolverhampton","ARRIVA TRAINS WALE","17.80","Art Gallery","4112","Public Transport","15/03/2018"
"Wolverhampton City Council","http://opendatacommunities.org/id/metropolitan-district-council/wolverhampton","WOLVERHAMPTON CC","8.33","Headstart Phase 3","7523","Parking Fees","15/03/2018"
"Wolverhampton City Council","http://opendatacommunities.org/id/metropolitan-district-council/wolverhampton","Virgin Trains","58.80","Strategic Asset Management - General","4112","Public Transport","15/03/2018"
"Wolverhampton City Council","http://opendatacommunities.org/id/metropolitan-district-council/wolverhampton","REGISTRARS OFFICE","30.00","IMPACT","8299","Training Expenses","15/03/2018"
"Wolverhampton City Council","http://opendatacommunities.org/id/metropolitan-district-council/wolverhampton","WEST COAST TRAINS","57.00","IMPACT","4112","Public Transport","15/03/2018"
"Wolverhampton City Council","http://opendatacommunities.org/id/metropolitan-district-council/wolverhampton","VISITBRITAIN SHOP GB","111.80","IMPACT","7991","Educ Trips, Holidays, Outings, Activity","15/03/2018"
"Wolverhampton City Council","http://opendatacommunities.org/id/metropolitan-district-council/wolverhampton","BLOOMS MENSWEAR","29.17","Mayoral Expenses","5611","Equipment - Purchase","15/03/2018"
"Wolverhampton City Council","http://opendatacommunities.org/id/metropolitan-district-council/wolverhampton","WISEPOPS","1.28","City Direct","7372","Computing - Purchase of Software","15/03/2018"
"Wolverhampton City Council","http://opendatacommunities.org/id/metropolitan-district-council/wolverhampton","LOOP11.COM","147.11","City Direct","7372","Computing - Purchase of Software","15/03/2018"
"Wolverhampton City Council","http://opendatacommunities.org/id/metropolitan-district-council/wolverhampton","ITUNES.COM/BILL","2.07","LAC Education Team (LACE)","5735","Computing - Purchase of Software","15/03/2018"
"Wolverhampton City Council","http://opendatacommunities.org/id/metropolitan-district-council/wolverhampton","WWW.ELECTRONICWORLDTV.","-299.98","LAC Transitions Team","5722","Client Allowances","15/03/2018"
"Wolverhampton City Council","http://opendatacommunities.org/id/metropolitan-district-council/wolverhampton","SCREWFIX WOLVERHAM","20.52","Public Conveniences","5211","Equipment - Purchase","15/03/2018"
"Wolverhampton City Council","http://opendatacommunities.org/id/metropolitan-district-council/wolverhampton","Amazon UK Marketplace","23.89","ICT General Programme","5942","Computing - Purchase of Hardware","15/03/2018"
"Wolverhampton City Council","http://opendatacommunities.org/id/metropolitan-district-council/wolverhampton","PLURALSIGHT","17.86","Strategic ICTS (ICT Serv Budget)","8299","Training Expenses","15/03/2018"
"Wolverhampton City Council","http://opendatacommunities.org/id/metropolitan-district-council/wolverhampton","ASDA GROCERIES ONLINE","3.00","Upper Pendeford Farm Childrens Home","5411","Provisions (Not for resale)","15/03/2018"
"Wolverhampton City Council","http://opendatacommunities.org/id/metropolitan-district-council/wolverhampton","Amazon UK Marketplace","3.25","Civic Events","5942","Books","15/03/2018"
"Wolverhampton City Council","http://opendatacommunities.org/id/metropolitan-district-council/wolverhampton","FOSTERTALK","37.50","Fostering Team & Allowances","8931","Services - Professional Fees","15/03/2018"
"Wolverhampton City Council","http://opendatacommunities.org/id/metropolitan-district-council/wolverhampton","WP-CENTRAL TAXIS L","187.20","Fostering Team & Allowances","4121","Client Transport","15/03/2018"
"Wolverhampton City Council","http://opendatacommunities.org/id/metropolitan-district-council/wolverhampton","REGISTRARS OFFICE","20.00","IMPACT","8299","Training Expenses","15/03/2018"
"Wolverhampton City Council","http://opendatacommunities.org/id/metropolitan-district-council/wolverhampton","ASDA SUPERSTORE","73.00","EIP Locality 5","5411","Grant Payments","14/03/2018"
"Wolverhampton City Council","http://opendatacommunities.org/id/metropolitan-district-council/wolverhampton","LENTE DESIGNS","108.94","Service Wide","5732","Equipment - Purchase","14/03/2018"
"Wolverhampton City Council","http://opendatacommunities.org/id/metropolitan-district-council/wolverhampton","BARONS COURT HOTEL","350.00","MASH","7011","Section 17","14/03/2018"
"Wolverhampton City Council","http://opendatacommunities.org/id/metropolitan-district-council/wolverhampton","B&M RETAIL","7.06","LAC Transitions Team","5310","Client Allowances","14/03/2018"
"Wolverhampton City Council","http://opendatacommunities.org/id/metropolitan-district-council/wolverhampton","PO WILLENHALL RD 5497","50.00","EIP Locality 1","6011","Grant Payments","14/03/2018"
"Wolverhampton City Council","http://opendatacommunities.org/id/metropolitan-district-council/wolverhampton","Cross Country Trains","7.80","Head of Strategic Commissioning � People","4112","Public Transport","14/03/2018"
"Wolverhampton City Council","http://opendatacommunities.org/id/metropolitan-district-council/wolverhampton","Wix.com","93.13","Technical Support","5817","Computing - Purchase of Software","14/03/2018"
"Wolverhampton City Council","http://opendatacommunities.org/id/metropolitan-district-council/wolverhampton","WILKO RETAIL LIMIT","18.12","Global Budgets","5722","Equipment - Purchase","14/03/2018"
"Wolverhampton City Council","http://opendatacommunities.org/id/metropolitan-district-council/wolverhampton","WICKES","10.82","Community Enablement","5211","Equipment - R & M","14/03/2018"
"Wolverhampton City Council","http://opendatacommunities.org/id/metropolitan-district-council/wolverhampton","REGISTRARS OFFICE","60.00","Head of Service - CINCP","8299","Services - Professional Fees","14/03/2018"
"Wolverhampton City Council","http://opendatacommunities.org/id/metropolitan-district-council/wolverhampton","J VAN VLIET BIRMINGHAM","125.45","Creative Studies Delivery Area","5399","Materials","14/03/2018"
"Wolverhampton City Council","http://opendatacommunities.org/id/metropolitan-district-council/wolverhampton","J VAN VLIET BIRMINGHAM","74.98","Creative Studies Delivery Area","5399","Materials","14/03/2018"
"Wolverhampton City Council","http://opendatacommunities.org/id/metropolitan-district-council/wolverhampton","TESCO STORES 5194","169.25","Towers Outdoor Education Centre","5411","Provisions (Not for resale)","14/03/2018"
"Wolverhampton City Council","http://opendatacommunities.org/id/metropolitan-district-council/wolverhampton","Amazon UK Marketplace","1.49","Towers Outdoor Education Centre","5942","Books","14/03/2018"
"Wolverhampton City Council","http://opendatacommunities.org/id/metropolitan-district-council/wolverhampton","PARTY NIGHTS","304.00","Communications & Marketing - General","5999","Equipment - Purchase","14/03/2018"
"Wolverhampton City Council","http://opendatacommunities.org/id/metropolitan-district-council/wolverhampton","HEALTH BOOKS UK LTD","126.00","WV Active Marketing","5942","Books","14/03/2018"
"Wolverhampton City Council","http://opendatacommunities.org/id/metropolitan-district-council/wolverhampton","GOOGLE  ADWS9680351324","474.76","Communications & Marketing - General","5968","Subscriptions","14/03/2018"
"Wolverhampton City Council","http://opendatacommunities.org/id/metropolitan-district-council/wolverhampton","Amazon UK Marketplace","41.66","Aldersley Leisure Village","5942","Equipment - Purchase","14/03/2018"
"Wolverhampton City Council","http://opendatacommunities.org/id/metropolitan-district-council/wolverhampton","Amazon UK Marketplace","19.98","Strategic ICTS (ICT Serv Budget)","5942","Books","14/03/2018"
"Wolverhampton City Council","http://opendatacommunities.org/id/metropolitan-district-council/wolverhampton","ASDA GROCERIES ONLINE","-4.41","Upper Pendeford Farm Childrens Home","5411","Provisions (Not for resale)","14/03/2018"
"Wolverhampton City Council","http://opendatacommunities.org/id/metropolitan-district-council/wolverhampton","ASDA HOME SHOPPING","-9.28","Upper Pendeford Farm Childrens Home","5411","Provisions (Not for resale)","14/03/2018"
"Wolverhampton City Council","http://opendatacommunities.org/id/metropolitan-district-council/wolverhampton","ASDA GROCERIES ONLINE","226.96","Upper Pendeford Farm Childrens Home","5411","Provisions (Not for resale)","14/03/2018"
"Wolverhampton City Council","http://opendatacommunities.org/id/metropolitan-district-council/wolverhampton","ASDA HOME SHOPPING","240.40","Upper Pendeford Farm Childrens Home","5411","Provisions (Not for resale)","14/03/2018"
"Wolverhampton City Council","http://opendatacommunities.org/id/metropolitan-district-council/wolverhampton","Amazon UK Marketplace","7.99","Upper Pendeford Farm Childrens Home","5942","Books","14/03/2018"
"Wolverhampton City Council","http://opendatacommunities.org/id/metropolitan-district-council/wolverhampton","Virgintrains.co.uk","-52.40","LAC Team","4112","Public Transport","14/03/2018"
"Wolverhampton City Council","http://opendatacommunities.org/id/metropolitan-district-council/wolverhampton","WM MORRISON FOOD.COM","90.63","Discretionary Fund","5411","Materials","14/03/2018"
"Wolverhampton City Council","http://opendatacommunities.org/id/metropolitan-district-council/wolverhampton","J VAN VLIET BIRMINGHAM","49.24","Creative Studies Delivery Area","5399","Materials for resale","14/03/2018"
"Wolverhampton City Council","http://opendatacommunities.org/id/metropolitan-district-council/wolverhampton","J VAN VLIET BIRMINGHAM","95.95","Creative Studies Delivery Area","5399","Materials","14/03/2018"
"Wolverhampton City Council","http://opendatacommunities.org/id/metropolitan-district-council/wolverhampton","BRITANNIA","56.25","CIN/CP Social Work Unit - Area 5","7011","No Recourse to Public Funds","14/03/2018"
"Wolverhampton City Council","http://opendatacommunities.org/id/metropolitan-district-council/wolverhampton","PREMIER INN","308.94","Adoption and Residence Team & Allowances","3811","Accommodation Costs","14/03/2018"
"Wolverhampton City Council","http://opendatacommunities.org/id/metropolitan-district-council/wolverhampton","Virgin Trains","160.00","Scrutiny & Transparency","4112","Public Transport","14/03/2018"
"Wolverhampton City Council","http://opendatacommunities.org/id/metropolitan-district-council/wolverhampton","Trainline","-65.40","Revenues","4112","Public Transport","13/03/2018"
"Wolverhampton City Council","http://opendatacommunities.org/id/metropolitan-district-council/wolverhampton","Trainline","-72.40","Revenues","4112","Public Transport","13/03/2018"
"Wolverhampton City Council","http://opendatacommunities.org/id/metropolitan-district-council/wolverhampton","Trainline","92.70","Revenues","4112","Public Transport","13/03/2018"
"Wolverhampton City Council","http://opendatacommunities.org/id/metropolitan-district-council/wolverhampton","Amazon UK Marketplace","58.99","EIP Locality 2","5942","Provisions (Not for resale)","13/03/2018"
"Wolverhampton City Council","http://opendatacommunities.org/id/metropolitan-district-council/wolverhampton","TRAVELODGE","292.00","Adoption and Residence Team & Allowances","3615","Accommodation Costs","13/03/2018"
"Wolverhampton City Council","http://opendatacommunities.org/id/metropolitan-district-council/wolverhampton","FUEL CARD SERVICES LTD","6.00","Towers Outdoor Education Centre","7399","Petrol","13/03/2018"
"Wolverhampton City Council","http://opendatacommunities.org/id/metropolitan-district-council/wolverhampton","POST OFFICE COUNTER","7.25","Towers Outdoor Education Centre","9402","Comms - Postage","13/03/2018"
"Wolverhampton City Council","http://opendatacommunities.org/id/metropolitan-district-council/wolverhampton","Amazon EU","35.62","Towers Outdoor Education Centre","5969","Equipment - Purchase","13/03/2018"
"Wolverhampton City Council","http://opendatacommunities.org/id/metropolitan-district-council/wolverhampton","HARLECH FOODSERVICE LT","96.14","Towers Outdoor Education Centre","5422","Provisions (Not for resale)","13/03/2018"
"Wolverhampton City Council","http://opendatacommunities.org/id/metropolitan-district-council/wolverhampton","WYNNSTAY ARGICULTURAL","638.89","Towers Outdoor Education Centre","5311","Fixtures and Fittings - Purchases","13/03/2018"
"Wolverhampton City Council","http://opendatacommunities.org/id/metropolitan-district-council/wolverhampton","HN NUTTALL LTD","363.46","Towers Outdoor Education Centre","5085","Provisions (Not for resale)","13/03/2018"
"Wolverhampton City Council","http://opendatacommunities.org/id/metropolitan-district-council/wolverhampton","C L JONES HEAD OFFICE","77.75","Towers Outdoor Education Centre","5211","Fixtures and Fittings - Purchases","13/03/2018"
"Wolverhampton City Council","http://opendatacommunities.org/id/metropolitan-district-council/wolverhampton","Amazon UK Marketplace","9.78","EIP Locality 4","5942","Stationery","13/03/2018"
"Wolverhampton City Council","http://opendatacommunities.org/id/metropolitan-district-council/wolverhampton","Virgin Trains","173.10","Fostering Team & Allowances","4112","Public Transport","13/03/2018"
"Wolverhampton City Council","http://opendatacommunities.org/id/metropolitan-district-council/wolverhampton","FACEBK VKXNPF2BR2","51.03","Communications & Marketing - General","7311","Marketing \ Non-staff advertising","13/03/2018"
"Wolverhampton City Council","http://opendatacommunities.org/id/metropolitan-district-council/wolverhampton","FACEBK TKXNPF2BR2","448.97","Communications & Marketing - General","7311","Marketing \ Non-staff advertising","13/03/2018"
"Wolverhampton City Council","http://opendatacommunities.org/id/metropolitan-district-council/wolverhampton","Trainline","119.50","Education Business Partnership","4112","Public Transport","13/03/2018"
"Wolverhampton City Council","http://opendatacommunities.org/id/metropolitan-district-council/wolverhampton","NAMESCO","34.99","City Direct","4816","Computing - Purchase of Software","13/03/2018"
"Wolverhampton City Council","http://opendatacommunities.org/id/metropolitan-district-council/wolverhampton","Trainline","171.45","LAC Education Team (LACE)","4112","Public Transport","13/03/2018"
"Wolverhampton City Council","http://opendatacommunities.org/id/metropolitan-district-council/wolverhampton","WOLVERHAMPTON CC","2.50","Cemeteries","7523","Car Allowances","13/03/2018"
"Wolverhampton City Council","http://opendatacommunities.org/id/metropolitan-district-council/wolverhampton","Amazon UK Marketplace","99.90","Strategic ICTS (ICT Serv Budget)","5942","Books","13/03/2018"
"Wolverhampton City Council","http://opendatacommunities.org/id/metropolitan-district-council/wolverhampton","Amazon UK Marketplace","99.90","Strategic ICTS (ICT Serv Budget)","5942","Books","13/03/2018"
"Wolverhampton City Council","http://opendatacommunities.org/id/metropolitan-district-council/wolverhampton","AMZ PUREMATE +44 207 0","-26.99","Upper Pendeford Farm Childrens Home","5942","Books","13/03/2018"
"Wolverhampton City Council","http://opendatacommunities.org/id/metropolitan-district-council/wolverhampton","AMZ Amazon.co.uk","-1.50","Upper Pendeford Farm Childrens Home","5969","Equipment - Purchase","13/03/2018"
"Wolverhampton City Council","http://opendatacommunities.org/id/metropolitan-district-council/wolverhampton","WWW.ARGOS.CO.UK","79.99","EIP Locality 5","5310","Grant Payments","13/03/2018"
"Wolverhampton City Council","http://opendatacommunities.org/id/metropolitan-district-council/wolverhampton","WWW.ARGOS.CO.UK","146.95","EIP Locality 5","5310","Grant Payments","13/03/2018"
"Wolverhampton City Council","http://opendatacommunities.org/id/metropolitan-district-council/wolverhampton","WWW.ARGOS.CO.UK","256.94","EIP Locality 5","5310","Grant Payments","13/03/2018"
"Wolverhampton City Council","http://opendatacommunities.org/id/metropolitan-district-council/wolverhampton","WWW.ARGOS.CO.UK","136.94","EIP Locality 5","5310","Grant Payments","13/03/2018"
"Wolverhampton City Council","http://opendatacommunities.org/id/metropolitan-district-council/wolverhampton","WOLVERHAMPTON CC","2.50","Headstart Phase 3","7523","Parking Fees","13/03/2018"
"Wolverhampton City Council","http://opendatacommunities.org/id/metropolitan-district-council/wolverhampton","NGA.ORG.UK","241.67","Governors support team","7399","Equipment - Purchase","13/03/2018"
"Wolverhampton City Council","http://opendatacommunities.org/id/metropolitan-district-council/wolverhampton","DIRECT CARPETS","90.00","EIP Locality 1","5713","Grant Payments","13/03/2018"
"Wolverhampton City Council","http://opendatacommunities.org/id/metropolitan-district-council/wolverhampton","POST OFFICE COUNTER","98.60","Civic Centre Catering","9402","Comms - Postage","13/03/2018"
"Wolverhampton City Council","http://opendatacommunities.org/id/metropolitan-district-council/wolverhampton","WICKES","6.82","Community Enablement","5211","Equipment - R & M","13/03/2018"
"Wolverhampton City Council","http://opendatacommunities.org/id/metropolitan-district-council/wolverhampton","Amazon Prime","7.99","Education And Access","5968","Subscriptions","13/03/2018"
"Wolverhampton City Council","http://opendatacommunities.org/id/metropolitan-district-council/wolverhampton","ASDA HOME SHOPPING","56.55","Ernest Bold Court","5411","Provisions (Not for resale)","13/03/2018"
"Wolverhampton City Council","http://opendatacommunities.org/id/metropolitan-district-council/wolverhampton","THE NEW BRIDGE GUEST H","200.00","CIN/CP Social Work Unit - Area 4","7011","Section 17","13/03/2018"
"Wolverhampton City Council","http://opendatacommunities.org/id/metropolitan-district-council/wolverhampton","HMCOURTS-SERVICE.G","75.00","Mental Health Assessment & Care Mgmt","9222","Services - Fees and Charges","13/03/2018"
"Wolverhampton City Council","http://opendatacommunities.org/id/metropolitan-district-council/wolverhampton","BRITANNIA","56.25","CIN/CP Social Work Unit - Area 5","7011","No Recourse to Public Funds","13/03/2018"
"Wolverhampton City Council","http://opendatacommunities.org/id/metropolitan-district-council/wolverhampton","POST OFFICE COUNTER","6.45","Adoption and Residence Team & Allowances","9402","Comms - Postage","13/03/2018"
"Wolverhampton City Council","http://opendatacommunities.org/id/metropolitan-district-council/wolverhampton","Virgin Trains","412.00","Adoption and Residence Team & Allowances","4112","Public Transport","13/03/2018"
"Wolverhampton City Council","http://opendatacommunities.org/id/metropolitan-district-council/wolverhampton","NCE COMPUTER GROUP","182.50","Strategic ICTS (ICT Serv Budget)","7372","Computing - Purchase of Software","13/03/2018"
"Wolverhampton City Council","http://opendatacommunities.org/id/metropolitan-district-council/wolverhampton","Virgin Trains","10.60","Members Expenses","4112","Public Transport","13/03/2018"
"Wolverhampton City Council","http://opendatacommunities.org/id/metropolitan-district-council/wolverhampton","ASDA HOME SHOPPING","-0.30","Ernest Bold Court","5411","Provisions (Not for resale)","12/03/2018"
"Wolverhampton City Council","http://opendatacommunities.org/id/metropolitan-district-council/wolverhampton","BOWLAMANIA","17.00","Aldersley Leisure Village","5655","Equipment - Purchase","12/03/2018"
"Wolverhampton City Council","http://opendatacommunities.org/id/metropolitan-district-council/wolverhampton","MAPLIN WOLVERHAMPT WV2","16.66","Fostering Team & Allowances","4812","Comms - Mobile Telephones","12/03/2018"
"Wolverhampton City Council","http://opendatacommunities.org/id/metropolitan-district-council/wolverhampton","Amazon UK Marketplace","59.99","Headstart - Learning Technologies Team","5942","Equipment - Purchase","12/03/2018"
"Wolverhampton City Council","http://opendatacommunities.org/id/metropolitan-district-council/wolverhampton","Amazon UK Marketplace","59.99","Headstart - Learning Technologies Team","5942","Equipment - Purchase","12/03/2018"
"Wolverhampton City Council","http://opendatacommunities.org/id/metropolitan-district-council/wolverhampton","Amazon UK Marketplace","24.99","Headstart - Learning Technologies Team","5942","Equipment - Purchase","12/03/2018"
"Wolverhampton City Council","http://opendatacommunities.org/id/metropolitan-district-council/wolverhampton","Amazon UK Marketplace","7.48","Headstart Phase 3","5942","Equipment - Purchase","12/03/2018"
"Wolverhampton City Council","http://opendatacommunities.org/id/metropolitan-district-council/wolverhampton","CRUK LOT","48.94","Headstart - Young People Engagement","8398","Services - Supplies & Services to users","12/03/2018"
"Wolverhampton City Council","http://opendatacommunities.org/id/metropolitan-district-council/wolverhampton","WEST COAST TRAINS","224.00","City Direct","4112","Public Transport","12/03/2018"
"Wolverhampton City Council","http://opendatacommunities.org/id/metropolitan-district-council/wolverhampton","VWO.com","44.04","City Direct","7399","Equipment - Purchase","12/03/2018"
"Wolverhampton City Council","http://opendatacommunities.org/id/metropolitan-district-council/wolverhampton","Amazon UK Marketplace","52.00","LAC Education Team (LACE)","5942","Books","12/03/2018"
"Wolverhampton City Council","http://opendatacommunities.org/id/metropolitan-district-council/wolverhampton","WWW.ARGOS.CO.UK","186.45","LAC Transitions Team","5310","Client Allowances","12/03/2018"
"Wolverhampton City Council","http://opendatacommunities.org/id/metropolitan-district-council/wolverhampton","WWW.ARGOS.CO.UK","160.94","LAC Transitions Team","5310","Client Allowances","12/03/2018"
"Wolverhampton City Council","http://opendatacommunities.org/id/metropolitan-district-council/wolverhampton","WEST COAST TRAINS","19.70","Youth Offending Team","4112","Public Transport","12/03/2018"
"Wolverhampton City Council","http://opendatacommunities.org/id/metropolitan-district-council/wolverhampton","ARGOS LTD","33.32","LAC Transitions Team","5310","Client Allowances","12/03/2018"
"Wolverhampton City Council","http://opendatacommunities.org/id/metropolitan-district-council/wolverhampton","HOMEZONE","195.82","LAC Transitions Team","5211","Client Allowances","12/03/2018"
"Wolverhampton City Council","http://opendatacommunities.org/id/metropolitan-district-council/wolverhampton","PREMIER INN","360.92","Adoption and Residence Team & Allowances","3811","Services - Supplies & Services to users","12/03/2018"
"Wolverhampton City Council","http://opendatacommunities.org/id/metropolitan-district-council/wolverhampton","AMZ BasicForm UK","-199.80","Strategic ICTS (ICT Serv Budget)","5999","Equipment - Purchase","12/03/2018"
"Wolverhampton City Council","http://opendatacommunities.org/id/metropolitan-district-council/wolverhampton","PAYPAL  BRITISHTELE","113.35","Strategic ICTS (ICT Serv Budget)","5732","Equipment - Purchase","12/03/2018"
"Wolverhampton City Council","http://opendatacommunities.org/id/metropolitan-district-council/wolverhampton","Amazon UK Marketplace","179.82","Strategic ICTS (ICT Serv Budget)","5942","Books","12/03/2018"
"Wolverhampton City Council","http://opendatacommunities.org/id/metropolitan-district-council/wolverhampton","Amazon UK Marketplace","149.85","Strategic ICTS (ICT Serv Budget)","5942","Books","12/03/2018"
"Wolverhampton City Council","http://opendatacommunities.org/id/metropolitan-district-council/wolverhampton","REDWINGS LODGE","5.99","Emergency Duty Team","7011","Services - Supplies & Services to users","12/03/2018"
"Wolverhampton City Council","http://opendatacommunities.org/id/metropolitan-district-council/wolverhampton","BLACKPOOL COUNCIL","77.42","MASH","9399","Section 17","12/03/2018"
"Wolverhampton City Council","http://opendatacommunities.org/id/metropolitan-district-council/wolverhampton","VIKING","136.63","Archives","5111","Stationery","12/03/2018"
"Wolverhampton City Council","http://opendatacommunities.org/id/metropolitan-district-council/wolverhampton","WWW.COFFEESUPPLIESDIRE","99.46","Archives","5331","Materials for resale","12/03/2018"
"Wolverhampton City Council","http://opendatacommunities.org/id/metropolitan-district-council/wolverhampton","Virgin Trains","188.00","Scrutiny & Transparency","4112","Public Transport","12/03/2018"
"Wolverhampton City Council","http://opendatacommunities.org/id/metropolitan-district-council/wolverhampton","E01510300000000","200.00","MASH","6011","No Recourse to Public Funds","12/03/2018"
"Wolverhampton City Council","http://opendatacommunities.org/id/metropolitan-district-council/wolverhampton","DUNELM (SOFT FURNISHIN","20.00","Pupil & Student Support","5714","Equipment - Purchase","12/03/2018"
"Wolverhampton City Council","http://opendatacommunities.org/id/metropolitan-district-council/wolverhampton","WWW.WYCHBEARINGS.CO.UK","12.75","Blakenhall Commty & Healthy Living Ctr","7399","Equipment - Purchase","12/03/2018"
"Wolverhampton City Council","http://opendatacommunities.org/id/metropolitan-district-council/wolverhampton","FSPRG.UK","5.05","Technical Support","5818","Subscriptions","12/03/2018"
"Wolverhampton City Council","http://opendatacommunities.org/id/metropolitan-district-council/wolverhampton","WWW.INSTANTPRINT.C","-87.50","Technical Support","7338","Printing","12/03/2018"
"Wolverhampton City Council","http://opendatacommunities.org/id/metropolitan-district-council/wolverhampton","WWW.INSTANTPRINT.C","87.50","Technical Support","7338","Printing","12/03/2018"
"Wolverhampton City Council","http://opendatacommunities.org/id/metropolitan-district-council/wolverhampton","Wix.com","279.39","Technical Support","5817","Computing - Purchase of Software","12/03/2018"
"Wolverhampton City Council","http://opendatacommunities.org/id/metropolitan-district-council/wolverhampton","Amazon EU","18.99","Global Budgets","5969","Equipment - Purchase","12/03/2018"
"Wolverhampton City Council","http://opendatacommunities.org/id/metropolitan-district-council/wolverhampton","Amazon UK Marketplace","17.79","Global Budgets","5942","Books","12/03/2018"
"Wolverhampton City Council","http://opendatacommunities.org/id/metropolitan-district-council/wolverhampton","Amazon UK Marketplace","55.12","EIP Locality 3","5942","Stationery","12/03/2018"
"Wolverhampton City Council","http://opendatacommunities.org/id/metropolitan-district-council/wolverhampton","B & Q 1243","10.08","Community Enablement","5211","Equipment - R & M","12/03/2018"
"Wolverhampton City Council","http://opendatacommunities.org/id/metropolitan-district-council/wolverhampton","ASDA HOME SHOPPING","71.14","Ernest Bold Court","5411","Provisions (Not for resale)","12/03/2018"
"Wolverhampton City Council","http://opendatacommunities.org/id/metropolitan-district-council/wolverhampton","Trainline","20.15","Head of Service - CINCP","4112","Public Transport","12/03/2018"
"Wolverhampton City Council","http://opendatacommunities.org/id/metropolitan-district-council/wolverhampton","Amazon Digital Dwnlds","0.99","Central Training","5735","Books","12/03/2018"
"Wolverhampton City Council","http://opendatacommunities.org/id/metropolitan-district-council/wolverhampton","CLAYTON V S LIMITED","122.96","Fleet Management","5013","Equipment - Purchase","12/03/2018"
"Wolverhampton City Council","http://opendatacommunities.org/id/metropolitan-district-council/wolverhampton","Amazon Prime","7.99","Street Lighting Maintenance","5968","Subscriptions","12/03/2018"
"Wolverhampton City Council","http://opendatacommunities.org/id/metropolitan-district-council/wolverhampton","WAITROSE 696","12.50","Music Support Team","5411","Equipment - R & M","12/03/2018"
"Wolverhampton City Council","http://opendatacommunities.org/id/metropolitan-district-council/wolverhampton","Amazon EU","7.16","Parks - Ranger Service","5969","Equipment - Purchase","12/03/2018"
"Wolverhampton City Council","http://opendatacommunities.org/id/metropolitan-district-council/wolverhampton","Amazon UK Marketplace","9.90","Parks - East Area Management","5942","Equipment - Purchase","12/03/2018"
"Wolverhampton City Council","http://opendatacommunities.org/id/metropolitan-district-council/wolverhampton","DVLA DRIVER ONLINE","16.67","LAC Transitions Team","9399","Client Allowances","12/03/2018"
"Wolverhampton City Council","http://opendatacommunities.org/id/metropolitan-district-council/wolverhampton","Virgintrains.co.uk","-26.25","Members Expenses","4112","Public Transport","12/03/2018"
"Wolverhampton City Council","http://opendatacommunities.org/id/metropolitan-district-council/wolverhampton","Virgintrains.co.uk","-21.00","Members Expenses","4112","Public Transport","12/03/2018"
"Wolverhampton City Council","http://opendatacommunities.org/id/metropolitan-district-council/wolverhampton","WP-THE CRATFS COUNCIL","120.95","Visitor Economy - Development","8398","Services - Supplies & Services to users","12/03/2018"
"Wolverhampton City Council","http://opendatacommunities.org/id/metropolitan-district-council/wolverhampton","ALDI 94 772","5.70","Mayoral Expenses","5411","Provisions (Not for resale)","12/03/2018"
"Wolverhampton City Council","http://opendatacommunities.org/id/metropolitan-district-council/wolverhampton","PAYPAL  RMACKDAKIN","-99.99","EIP Locality 3","5999","Grant Payments","12/03/2018"
"Wolverhampton City Council","http://opendatacommunities.org/id/metropolitan-district-council/wolverhampton","PAYPAL  SHUTL LTD","9.12","EIP Locality 3","4816","Comms - Postage","12/03/2018"
"Wolverhampton City Council","http://opendatacommunities.org/id/metropolitan-district-council/wolverhampton","Amazon UK Marketplace","122.10","EIP Locality 2","5942","Provisions (Not for resale)","12/03/2018"
"Wolverhampton City Council","http://opendatacommunities.org/id/metropolitan-district-council/wolverhampton","BRITANNIA","140.00","The Little Civic","7011","Accommodation Costs","12/03/2018"
"Wolverhampton City Council","http://opendatacommunities.org/id/metropolitan-district-council/wolverhampton","M-R-S COMMUNICATIONS L","130.00","The Little Civic","5046","Equipment - Hire","12/03/2018"
"Wolverhampton City Council","http://opendatacommunities.org/id/metropolitan-district-council/wolverhampton","M-R-S COMMUNICATIONS L","130.00","The Little Civic","5046","Equipment - Hire","12/03/2018"
"Wolverhampton City Council","http://opendatacommunities.org/id/metropolitan-district-council/wolverhampton","M-R-S COMMUNICATIONS L","130.00","Civic Halls Non Direct Management A/C","5046","Equipment - Hire","12/03/2018"
"Wolverhampton City Council","http://opendatacommunities.org/id/metropolitan-district-council/wolverhampton","M-R-S COMMUNICATIONS L","130.00","Civic Halls Non Direct Management A/C","5046","Equipment - Hire","12/03/2018"
"Wolverhampton City Council","http://opendatacommunities.org/id/metropolitan-district-council/wolverhampton","TESCO DELIVERY SAVER1","3.49","Towers Outdoor Education Centre","5411","Provisions (Not for resale)","12/03/2018"
"Wolverhampton City Council","http://opendatacommunities.org/id/metropolitan-district-council/wolverhampton","CHORUM RECORDS","700.00","Civic Events","5733","Equipment - Hire","12/03/2018"
"Wolverhampton City Council","http://opendatacommunities.org/id/metropolitan-district-council/wolverhampton","Amazon EU","11.14","EIP Locality 4","5969","Stationery","12/03/2018"
"Wolverhampton City Council","http://opendatacommunities.org/id/metropolitan-district-council/wolverhampton","CURRYS ONLINE","539.98","Aldersley Leisure Village","5732","Equipment - Purchase","12/03/2018"
"Wolverhampton City Council","http://opendatacommunities.org/id/metropolitan-district-council/wolverhampton","Trainline","69.90","LAC Education Team (LACE)","4112","Public Transport","09/03/2018"
"Wolverhampton City Council","http://opendatacommunities.org/id/metropolitan-district-council/wolverhampton","WP-CENTRAL TAXIS L","240.00","Adoption and Residence Team & Allowances","4121","Client Transport","09/03/2018"
"Wolverhampton City Council","http://opendatacommunities.org/id/metropolitan-district-council/wolverhampton","Amazon UK Marketplace","67.56","Strategic ICTS (ICT Serv Budget)","5942","Books","09/03/2018"
"Wolverhampton City Council","http://opendatacommunities.org/id/metropolitan-district-council/wolverhampton","Amazon EU","22.73","Upper Pendeford Farm Childrens Home","5969","Books","09/03/2018"
"Wolverhampton City Council","http://opendatacommunities.org/id/metropolitan-district-council/wolverhampton","Amazon EU","39.99","Upper Pendeford Farm Childrens Home","5969","Provisions (Not for resale)","09/03/2018"
"Wolverhampton City Council","http://opendatacommunities.org/id/metropolitan-district-council/wolverhampton","Trainline","195.50","Service Director Disab & Mental Health","4112","Public Transport","09/03/2018"
"Wolverhampton City Council","http://opendatacommunities.org/id/metropolitan-district-council/wolverhampton","S & B WASTE","168.00","The Maltings","4900","Grounds Maintenance - Non Contract","09/03/2018"
"Wolverhampton City Council","http://opendatacommunities.org/id/metropolitan-district-council/wolverhampton","WOLVERHAMPTON CC","1.25","Headstart Phase 3","7523","Parking Fees","09/03/2018"
"Wolverhampton City Council","http://opendatacommunities.org/id/metropolitan-district-council/wolverhampton","WWW.JCTLTD.CO.UK","123.57","HRA General","5942","Books","09/03/2018"
"Wolverhampton City Council","http://opendatacommunities.org/id/metropolitan-district-council/wolverhampton","B&M RETAIL","88.59","EIP Locality 1","5310","Grant Payments","09/03/2018"
"Wolverhampton City Council","http://opendatacommunities.org/id/metropolitan-district-council/wolverhampton","CT WOLVERHAMPTON","62.50","EIP Locality 1","8398","Grant Payments","09/03/2018"
"Wolverhampton City Council","http://opendatacommunities.org/id/metropolitan-district-council/wolverhampton","Trainline","373.00","Learning Disabilities Management","4112","Public Transport","09/03/2018"
"Wolverhampton City Council","http://opendatacommunities.org/id/metropolitan-district-council/wolverhampton","CHINESE VISA APP S","151.83","LAC Transitions Team","9399","Client Allowances","09/03/2018"
"Wolverhampton City Council","http://opendatacommunities.org/id/metropolitan-district-council/wolverhampton","NOTEMACHINE","100.00","Childrens with Disabilities Team","6011","No Recourse to Public Funds","09/03/2018"
"Wolverhampton City Council","http://opendatacommunities.org/id/metropolitan-district-council/wolverhampton","NOTEMACHINE","250.00","Childrens with Disabilities Team","6011","No Recourse to Public Funds","09/03/2018"
"Wolverhampton City Council","http://opendatacommunities.org/id/metropolitan-district-council/wolverhampton","WILKO.COM","48.33","LAC Transitions Team","5722","Client Allowances","09/03/2018"
"Wolverhampton City Council","http://opendatacommunities.org/id/metropolitan-district-council/wolverhampton","REDWINGS LODGE","41.62","Emergency Duty Team","7011","Services - Supplies & Services to users","09/03/2018"
"Wolverhampton City Council","http://opendatacommunities.org/id/metropolitan-district-council/wolverhampton","AIRBNB","-337.08","Adoption and Residence Team & Allowances","7011","Accommodation Costs","09/03/2018"
"Wolverhampton City Council","http://opendatacommunities.org/id/metropolitan-district-council/wolverhampton","Amazon UK Marketplace","19.80","Towers Outdoor Education Centre","5942","Fixtures and Fittings - Purchases","09/03/2018"
"Wolverhampton City Council","http://opendatacommunities.org/id/metropolitan-district-council/wolverhampton","Amazon UK Marketplace","7.60","Towers Outdoor Education Centre","5942","Fixtures and Fittings - Purchases","09/03/2018"
"Wolverhampton City Council","http://opendatacommunities.org/id/metropolitan-district-council/wolverhampton","Amazon UK Marketplace","35.96","Towers Outdoor Education Centre","5942","Books","09/03/2018"
"Wolverhampton City Council","http://opendatacommunities.org/id/metropolitan-district-council/wolverhampton","BLOXWICH  SST","7.20","Economic Development","4112","Public Transport","09/03/2018"
"Wolverhampton City Council","http://opendatacommunities.org/id/metropolitan-district-council/wolverhampton","Amazon UK Marketplace","44.98","Headstart - Learning Technologies Team","5942","Equipment - Purchase","09/03/2018"
"Wolverhampton City Council","http://opendatacommunities.org/id/metropolitan-district-council/wolverhampton","WOLVERHAMPTON CC","1.25","IMPACT","7523","Car Allowances","09/03/2018"
"Wolverhampton City Council","http://opendatacommunities.org/id/metropolitan-district-council/wolverhampton","NATWEST BANK","100.00","EIP Locality 8","6011","Grant Payments","09/03/2018"
"Wolverhampton City Council","http://opendatacommunities.org/id/metropolitan-district-council/wolverhampton","B.COM BEST WESTERN BAR","320.00","MASH","7011","Services - Supplies & Services to users","09/03/2018"
"Wolverhampton City Council","http://opendatacommunities.org/id/metropolitan-district-council/wolverhampton","Trainline","19.45","SEN Sensory Inclusion","4112","Public Transport","09/03/2018"
"Wolverhampton City Council","http://opendatacommunities.org/id/metropolitan-district-council/wolverhampton","MANNING MACHINE","39.05","Blakenhall Commty & Healthy Living Ctr","5251","Equipment - Purchase","09/03/2018"
"Wolverhampton City Council","http://opendatacommunities.org/id/metropolitan-district-council/wolverhampton","HUGHES","163.94","EIP Locality 3","5732","Grant Payments","09/03/2018"
"Wolverhampton City Council","http://opendatacommunities.org/id/metropolitan-district-council/wolverhampton","ASDA SUPERSTORE","9.72","Civic Centre Catering","5411","Provisions (Not for resale)","09/03/2018"
"Wolverhampton City Council","http://opendatacommunities.org/id/metropolitan-district-council/wolverhampton","Amazon UK Marketplace","7.64","Welfare Rights","5942","Stationery","09/03/2018"
"Wolverhampton City Council","http://opendatacommunities.org/id/metropolitan-district-council/wolverhampton","Amazon UK Marketplace","1.42","Welfare Rights","5942","Stationery","09/03/2018"
"Wolverhampton City Council","http://opendatacommunities.org/id/metropolitan-district-council/wolverhampton","BCC REGISTER OFFIC","15.00","Legal Services","9399","Services - Professional Fees","09/03/2018"
"Wolverhampton City Council","http://opendatacommunities.org/id/metropolitan-district-council/wolverhampton","Amazon EU","9.99","Street Lighting Maintenance","5969","Equipment - Purchase","09/03/2018"
"Wolverhampton City Council","http://opendatacommunities.org/id/metropolitan-district-council/wolverhampton","Amazon UK Marketplace","52.90","Street Lighting Maintenance","5942","Books","09/03/2018"
"Wolverhampton City Council","http://opendatacommunities.org/id/metropolitan-district-council/wolverhampton","Amazon UK Marketplace","29.11","Parks - Ranger Service","5942","Equipment - Purchase","09/03/2018"
"Wolverhampton City Council","http://opendatacommunities.org/id/metropolitan-district-council/wolverhampton","Amazon UK Marketplace","8.32","Safeguarding Admin Resource","5942","Books","08/03/2018"
"Wolverhampton City Council","http://opendatacommunities.org/id/metropolitan-district-council/wolverhampton","SAINSBURYS","250.00","Duke Street Bungalows","6011","Provisions (Not for resale)","08/03/2018"
"Wolverhampton City Council","http://opendatacommunities.org/id/metropolitan-district-council/wolverhampton","WWW.ADASS.ORG.UK","200.00","Workforce Development","8398","Training Expenses","08/03/2018"
"Wolverhampton City Council","http://opendatacommunities.org/id/metropolitan-district-council/wolverhampton","AAIA","80.00","School Improvement","8299","Training Expenses","08/03/2018"
"Wolverhampton City Council","http://opendatacommunities.org/id/metropolitan-district-council/wolverhampton","123-REG.CO.UK","139.94","Strategic ICTS (ICT Serv Budget)","4816","Computing - Purchase of Software","08/03/2018"
"Wolverhampton City Council","http://opendatacommunities.org/id/metropolitan-district-council/wolverhampton","Amazon EU","16.47","Planning","5969","Stationery","08/03/2018"
"Wolverhampton City Council","http://opendatacommunities.org/id/metropolitan-district-council/wolverhampton","THE KEYBOARD COMPANY U","140.00","Hospital Team","5999","Equipment - Health and Safety","08/03/2018"
"Wolverhampton City Council","http://opendatacommunities.org/id/metropolitan-district-council/wolverhampton","PAYPAL  MAINEEXOTIC","139.00","Licensing - General","7538","Hire of Vehicles","08/03/2018"
"Wolverhampton City Council","http://opendatacommunities.org/id/metropolitan-district-council/wolverhampton","PAYPAL  PLANET78LTD","8.49","Technician","5732","Equipment - Purchase","08/03/2018"
"Wolverhampton City Council","http://opendatacommunities.org/id/metropolitan-district-council/wolverhampton","NATWEST BANK","100.00","EIP Locality 2","6011","Equipment - Purchase","08/03/2018"
"Wolverhampton City Council","http://opendatacommunities.org/id/metropolitan-district-council/wolverhampton","WEST COAST TRAINS","12.00","Managing Director","7523","Car Allowances","08/03/2018"
"Wolverhampton City Council","http://opendatacommunities.org/id/metropolitan-district-council/wolverhampton","WWW.ARGOS.CO.UK","258.94","LAC Team","5310","Financial Assistance In Exceptional Circ","08/03/2018"
"Wolverhampton City Council","http://opendatacommunities.org/id/metropolitan-district-council/wolverhampton","WOLVERHAMPTON CC","2.50","Headstart Phase 3","7523","Parking Fees","08/03/2018"
"Wolverhampton City Council","http://opendatacommunities.org/id/metropolitan-district-council/wolverhampton","WESTMINSTER FORUM","230.00","School Improvement","7392","Services - Consultants","08/03/2018"
"Wolverhampton City Council","http://opendatacommunities.org/id/metropolitan-district-council/wolverhampton","WWW.GOV.UK","10.00","Private Sector Housing","8999","Services - Professional Fees","08/03/2018"
"Wolverhampton City Council","http://opendatacommunities.org/id/metropolitan-district-council/wolverhampton","WWW.ARGOS.CO.UK","254.99","EIP Locality 1","5310","Grant Payments","08/03/2018"
"Wolverhampton City Council","http://opendatacommunities.org/id/metropolitan-district-council/wolverhampton","NOTEMACHINE","250.00","CIN/CP Social Work Unit - Area 6","6011","Financial Assistance In Exceptional Circ","08/03/2018"
"Wolverhampton City Council","http://opendatacommunities.org/id/metropolitan-district-council/wolverhampton","POST OFFICE COUNTER","55.75","LAC Team","9402","Comms - Postage","08/03/2018"
"Wolverhampton City Council","http://opendatacommunities.org/id/metropolitan-district-council/wolverhampton","Hotel on Booking.com","62.50","SEN Sensory Inclusion","7011","Equipment - Purchase","08/03/2018"
"Wolverhampton City Council","http://opendatacommunities.org/id/metropolitan-district-council/wolverhampton","E01577600000000","200.00","EIP Locality 3","6011","Grant Payments","08/03/2018"
"Wolverhampton City Council","http://opendatacommunities.org/id/metropolitan-district-council/wolverhampton","GRAYSON DESIGN & PRINT","166.40","Global Budgets","5111","Stationery","08/03/2018"
"Wolverhampton City Council","http://opendatacommunities.org/id/metropolitan-district-council/wolverhampton","BOOTS","22.00","Strategic Director Place","5912","Toilet Requisites","08/03/2018"
"Wolverhampton City Council","http://opendatacommunities.org/id/metropolitan-district-council/wolverhampton","THOMAS COOK-TRAVEL","761.90","Strategic Director Place","6051","Subsistence","08/03/2018"
"Wolverhampton City Council","http://opendatacommunities.org/id/metropolitan-district-council/wolverhampton","AIRBNB","280.90","Adoption and Residence Team & Allowances","7011","Accommodation Costs","08/03/2018"
"Wolverhampton City Council","http://opendatacommunities.org/id/metropolitan-district-council/wolverhampton","POUNDLAND LTD 1463","25.08","Civic Events","5310","Equipment - Purchase","08/03/2018"
"Wolverhampton City Council","http://opendatacommunities.org/id/metropolitan-district-council/wolverhampton","J P LENNARD LTD","39.88","Aldersley Leisure Village","5941","Equipment - Purchase","08/03/2018"
"Wolverhampton City Council","http://opendatacommunities.org/id/metropolitan-district-council/wolverhampton","RONTEC BILSTON","2.87","Fostering Team & Allowances","5541","Training Expenses","08/03/2018"
"Wolverhampton City Council","http://opendatacommunities.org/id/metropolitan-district-council/wolverhampton","FACEBK 8ZF2GF6AR2","448.25","Communications & Marketing - General","7311","Marketing \ Non-staff advertising","08/03/2018"
"Wolverhampton City Council","http://opendatacommunities.org/id/metropolitan-district-council/wolverhampton","FACEBK AZF2GF6AR2","51.75","Communications & Marketing - General","7311","Marketing \ Non-staff advertising","08/03/2018"
"Wolverhampton City Council","http://opendatacommunities.org/id/metropolitan-district-council/wolverhampton","WOLVERHAMPTON CC","3.33","IMPACT","7523","Car Allowances","08/03/2018"
"Wolverhampton City Council","http://opendatacommunities.org/id/metropolitan-district-council/wolverhampton","SAINSBURYS PFS (1340)","2.50","Mayoral Expenses","5541","Vehicle Maintenance - Repairs","08/03/2018"
"Wolverhampton City Council","http://opendatacommunities.org/id/metropolitan-district-council/wolverhampton","Amazon UK Marketplace","10.68","LAC Education Team (LACE)","5942","Books","08/03/2018"
"Wolverhampton City Council","http://opendatacommunities.org/id/metropolitan-district-council/wolverhampton","Amazon UK Marketplace","149.85","Strategic ICTS (ICT Serv Budget)","5942","Books","08/03/2018"
"Wolverhampton City Council","http://opendatacommunities.org/id/metropolitan-district-council/wolverhampton","Amazon UK Marketplace","199.80","Strategic ICTS (ICT Serv Budget)","5942","Books","08/03/2018"
"Wolverhampton City Council","http://opendatacommunities.org/id/metropolitan-district-council/wolverhampton","Trainline","243.50","CIN/CP Social Work Unit - Area 4","4112","Section 17","07/03/2018"
"Wolverhampton City Council","http://opendatacommunities.org/id/metropolitan-district-council/wolverhampton","WWW.ADASS.ORG.UK","499.00","Workforce Development","8398","Training Expenses","07/03/2018"
"Wolverhampton City Council","http://opendatacommunities.org/id/metropolitan-district-council/wolverhampton","J VAN VLIET BIRMINGHAM","11.70","Creative Studies Delivery Area","5399","Materials","07/03/2018"
"Wolverhampton City Council","http://opendatacommunities.org/id/metropolitan-district-council/wolverhampton","J VAN VLIET BIRMINGHAM","142.50","Creative Studies Delivery Area","5399","Materials","07/03/2018"
"Wolverhampton City Council","http://opendatacommunities.org/id/metropolitan-district-council/wolverhampton","Trainline","82.10","Inclusion Support","4112","Public Transport","07/03/2018"
"Wolverhampton City Council","http://opendatacommunities.org/id/metropolitan-district-council/wolverhampton","REGISTRARS OFFICE","10.00","Adoption and Residence Team & Allowances","8299","Training Expenses","07/03/2018"
"Wolverhampton City Council","http://opendatacommunities.org/id/metropolitan-district-council/wolverhampton","WWW.WMCA.CO.UK","1154.00","Business Manager - Place","4112","Public Transport","07/03/2018"
"Wolverhampton City Council","http://opendatacommunities.org/id/metropolitan-district-council/wolverhampton","WWW.WMCA.CO.UK","132.00","CIN/CP Social Work Unit - Area 3","9399","Client Transport","07/03/2018"
"Wolverhampton City Council","http://opendatacommunities.org/id/metropolitan-district-council/wolverhampton","PELIPRODUCT","157.01","Collections","5099","Equipment - Purchase","07/03/2018"
"Wolverhampton City Council","http://opendatacommunities.org/id/metropolitan-district-council/wolverhampton","WWW.IKEA.COM","162.50","LAC Transitions Team","5712","Client Allowances","07/03/2018"
"Wolverhampton City Council","http://opendatacommunities.org/id/metropolitan-district-council/wolverhampton","WOLVERHAMPTON CC","2.50","Headstart Phase 3","7523","Parking Fees","07/03/2018"
"Wolverhampton City Council","http://opendatacommunities.org/id/metropolitan-district-council/wolverhampton","SCREWFIX DIRECT LT","40.14","Culwell Street Depot","5211","R&M - Departmental planned (external)","07/03/2018"
"Wolverhampton City Council","http://opendatacommunities.org/id/metropolitan-district-council/wolverhampton","SAINSBURYS","150.00","Duke Street Bungalows","6011","Provisions (Not for resale)","07/03/2018"
"Wolverhampton City Council","http://opendatacommunities.org/id/metropolitan-district-council/wolverhampton","RIBA ENTERPRISES LTD","44.00","Head of Corporate Landlord","5942","Books","07/03/2018"
"Wolverhampton City Council","http://opendatacommunities.org/id/metropolitan-district-council/wolverhampton","ZEPHYR RACING PENNANTS","34.95","Civic Centre","5399","Equipment - Purchase","07/03/2018"
"Wolverhampton City Council","http://opendatacommunities.org/id/metropolitan-district-council/wolverhampton","COMPANY CARDS LTD","71.25","Technical Support","2741","Publications","07/03/2018"
"Wolverhampton City Council","http://opendatacommunities.org/id/metropolitan-district-council/wolverhampton","ARGOS LTD","16.66","LAC Transitions Team","5310","Client Allowances","07/03/2018"
"Wolverhampton City Council","http://opendatacommunities.org/id/metropolitan-district-council/wolverhampton","ROYAL CARPETS","250.00","LAC Transitions Team","5713","Client Allowances","07/03/2018"
"Wolverhampton City Council","http://opendatacommunities.org/id/metropolitan-district-council/wolverhampton","Trainline","292.50","CIN/CP Social Work Unit - Area 4","4112","Public Transport","07/03/2018"
"Wolverhampton City Council","http://opendatacommunities.org/id/metropolitan-district-council/wolverhampton","SPECSAVERSEVOUGB-","850.00","Eye Test Vouchers (HR)","8043","Services - Professional Fees","07/03/2018"
"Wolverhampton City Council","http://opendatacommunities.org/id/metropolitan-district-council/wolverhampton","B&M RETAIL LTD","3.72","Aldersley Leisure Village","5310","Equipment - Purchase","07/03/2018"
"Wolverhampton City Council","http://opendatacommunities.org/id/metropolitan-district-council/wolverhampton","HOME & MOTORSAVE LIMIT","9.86","Aldersley Leisure Village","5039","Materials","07/03/2018"
"Wolverhampton City Council","http://opendatacommunities.org/id/metropolitan-district-council/wolverhampton","HOBBY CRAFT LTD","6.45","Mayoral Expenses","5970","R4007","07/03/2018"
"Wolverhampton City Council","http://opendatacommunities.org/id/metropolitan-district-council/wolverhampton","UNTOUCHABLES","7.50","Cemeteries","5231","Materials","07/03/2018"
"Wolverhampton City Council","http://opendatacommunities.org/id/metropolitan-district-council/wolverhampton","N SOFTWARE INC","2950.37","Strategic ICTS (ICT Serv Budget)","5045","Computing - Purchase of Software","07/03/2018"
"Wolverhampton City Council","http://opendatacommunities.org/id/metropolitan-district-council/wolverhampton","Amazon UK Marketplace","161.52","Strategic ICTS (ICT Serv Budget)","5942","Books","07/03/2018"
"Wolverhampton City Council","http://opendatacommunities.org/id/metropolitan-district-council/wolverhampton","Trainline","12.15","Strategic ICTS (ICT Serv Budget)","4112","Public Transport","07/03/2018"
"Wolverhampton City Council","http://opendatacommunities.org/id/metropolitan-district-council/wolverhampton","CMT UK LTD TAXI FARE","17.80","Managing Director","4121","Client Transport","07/03/2018"
"Wolverhampton City Council","http://opendatacommunities.org/id/metropolitan-district-council/wolverhampton","WEST COAST TRAINS","12.00","Managing Director","7523","Car Allowances","07/03/2018"
"Wolverhampton City Council","http://opendatacommunities.org/id/metropolitan-district-council/wolverhampton","Virgintrains.co.uk","-98.00","Audit Services","4112","Public Transport","07/03/2018"
"Wolverhampton City Council","http://opendatacommunities.org/id/metropolitan-district-council/wolverhampton","FLOWERS IN THE CITY","41.67","Mayoral Expenses","5992","Equipment - Purchase","07/03/2018"
"Wolverhampton City Council","http://opendatacommunities.org/id/metropolitan-district-council/wolverhampton","PREMIER INN","93.99","Safeguarding Admin Resource","3811","Accommodation Costs","07/03/2018"
"Wolverhampton City Council","http://opendatacommunities.org/id/metropolitan-district-council/wolverhampton","ROYAL BK OF SCOTLAND","15.00","EIP Locality 2","6011","Financial Assistance In Exceptional Circ","07/03/2018"
"Wolverhampton City Council","http://opendatacommunities.org/id/metropolitan-district-council/wolverhampton","COUNTY HOTEL - THE","34.17","Emergency Duty Team","7011","Services - Supplies & Services to users","07/03/2018"
"Wolverhampton City Council","http://opendatacommunities.org/id/metropolitan-district-council/wolverhampton","SPAR SIOP TANDDERWEN","3.33","Towers Outdoor Education Centre","5411","Provisions (Not for resale)","07/03/2018"
"Wolverhampton City Council","http://opendatacommunities.org/id/metropolitan-district-council/wolverhampton","SPAR SIOP TANDDERWEN","233.84","Towers Outdoor Education Centre","5411","Provisions (Not for resale)","07/03/2018"
"Wolverhampton City Council","http://opendatacommunities.org/id/metropolitan-district-council/wolverhampton","POST OFFICE COUNTER","2.90","Towers Outdoor Education Centre","9402","Comms - Postage","07/03/2018"
"Wolverhampton City Council","http://opendatacommunities.org/id/metropolitan-district-council/wolverhampton","NCP BIRMINGHAM AIRPORT","46.60","Economic Development","7523","Car Allowances","07/03/2018"
"Wolverhampton City Council","http://opendatacommunities.org/id/metropolitan-district-council/wolverhampton","1&1 INTERNET LIMITED","13.10","Headstart - Learning Technologies Team","4816","Computing - Purchase of Software","07/03/2018"
"Wolverhampton City Council","http://opendatacommunities.org/id/metropolitan-district-council/wolverhampton","Amazon UK Marketplace","21.78","Ground Maintenance East","5942","Books","07/03/2018"
"Wolverhampton City Council","http://opendatacommunities.org/id/metropolitan-district-council/wolverhampton","WWW.PARTYDELIGHTS.CO.U","33.24","Communications & Marketing - General","5947","Equipment - Purchase","07/03/2018"
"Wolverhampton City Council","http://opendatacommunities.org/id/metropolitan-district-council/wolverhampton","WWW.WEDDINGCONFETTI.CO","57.96","Communications & Marketing - General","5331","Equipment - Purchase","07/03/2018"
"Wolverhampton City Council","http://opendatacommunities.org/id/metropolitan-district-council/wolverhampton","WEST COAST TRAINS","57.00","IMPACT","4112","Public Transport","07/03/2018"
"Wolverhampton City Council","http://opendatacommunities.org/id/metropolitan-district-council/wolverhampton","ASDA SUPERSTORE","150.00","CIN/CP Social Work Unit - Area 3","5411","No Recourse to Public Funds","07/03/2018"
"Wolverhampton City Council","http://opendatacommunities.org/id/metropolitan-district-council/wolverhampton","Virgin Trains","120.00","LAC Team","4112","Public Transport","07/03/2018"
"Wolverhampton City Council","http://opendatacommunities.org/id/metropolitan-district-council/wolverhampton","W M MORRISONS.COM","80.31","Discretionary Fund","5411","Materials","07/03/2018"
"Wolverhampton City Council","http://opendatacommunities.org/id/metropolitan-district-council/wolverhampton","CHARTERED INST OF LEGA","120.00","Central Training","8699","Training Expenses","06/03/2018"
"Wolverhampton City Council","http://opendatacommunities.org/id/metropolitan-district-council/wolverhampton","HMCOURTS-SERVICE.G","75.00","Mental Health Assessment & Care Mgmt","9222","Services - Fees and Charges","06/03/2018"
"Wolverhampton City Council","http://opendatacommunities.org/id/metropolitan-district-council/wolverhampton","AWESOMEMERCHANDISE","-50.00","School Improvement","2741","Publications","06/03/2018"
"Wolverhampton City Council","http://opendatacommunities.org/id/metropolitan-district-council/wolverhampton","ASDA SUPERSTORE","11.37","CIN/CP Social Work Unit - Area 5","5411","No Recourse to Public Funds","06/03/2018"
"Wolverhampton City Council","http://opendatacommunities.org/id/metropolitan-district-council/wolverhampton","ASDA SUPERSTORE","13.11","CIN/CP Social Work Unit - Area 5","5411","No Recourse to Public Funds","06/03/2018"
"Wolverhampton City Council","http://opendatacommunities.org/id/metropolitan-district-council/wolverhampton","WEST COAST TRAINS","7.20","Strategic ICTS (ICT Serv Budget)","4112","Public Transport","06/03/2018"
"Wolverhampton City Council","http://opendatacommunities.org/id/metropolitan-district-council/wolverhampton","HEADSETS4BUSINESS","1570.00","Strategic ICTS (ICT Serv Budget)","4812","Equipment - Purchase","06/03/2018"
"Wolverhampton City Council","http://opendatacommunities.org/id/metropolitan-district-council/wolverhampton","SANDHU","31.00","EIP Locality 5","5411","Grant Payments","06/03/2018"
"Wolverhampton City Council","http://opendatacommunities.org/id/metropolitan-district-council/wolverhampton","LIDDELL ELECTRICAL DIS","69.38","Culwell Street Depot","5065","R&M - Departmental planned (external)","06/03/2018"
"Wolverhampton City Council","http://opendatacommunities.org/id/metropolitan-district-council/wolverhampton","Amazon UK Marketplace","11.40","Global Budgets","5942","Books","06/03/2018"
"Wolverhampton City Council","http://opendatacommunities.org/id/metropolitan-district-council/wolverhampton","SP   ESPRAHOME","109.04","LAC Transitions Team","5712","Client Allowances","06/03/2018"
"Wolverhampton City Council","http://opendatacommunities.org/id/metropolitan-district-council/wolverhampton","ASDA HOME SHOPPING","-1.15","Ernest Bold Court","5411","Provisions (Not for resale)","06/03/2018"
"Wolverhampton City Council","http://opendatacommunities.org/id/metropolitan-district-council/wolverhampton","ASDA HOME SHOPPING","59.37","Ernest Bold Court","5411","Provisions (Not for resale)","06/03/2018"
"Wolverhampton City Council","http://opendatacommunities.org/id/metropolitan-district-council/wolverhampton","Amazon UK Marketplace","19.13","Community Enablement","5942","Books","06/03/2018"
"Wolverhampton City Council","http://opendatacommunities.org/id/metropolitan-district-council/wolverhampton","REGISTRARS OFFICE","-9.00","CIN/CP Social Work Unit - Area 7","8299","Section 17","06/03/2018"
"Wolverhampton City Council","http://opendatacommunities.org/id/metropolitan-district-council/wolverhampton","REGISTRARS OFFICE","31.00","CIN/CP Social Work Unit - Area 7","8299","Section 17","06/03/2018"
"Wolverhampton City Council","http://opendatacommunities.org/id/metropolitan-district-council/wolverhampton","CHARTERED INST OF LEGA","120.00","Central Training","8699","Training Expenses","06/03/2018"
"Wolverhampton City Council","http://opendatacommunities.org/id/metropolitan-district-council/wolverhampton","ASDA SUPERSTORE","19.11","CIN/CP Social Work Unit - Area 5","5411","No Recourse to Public Funds","06/03/2018"
"Wolverhampton City Council","http://opendatacommunities.org/id/metropolitan-district-council/wolverhampton","Trainline","61.70","CIN/CP Social Work Unit - Area 8","4112","Public Transport","06/03/2018"
"Wolverhampton City Council","http://opendatacommunities.org/id/metropolitan-district-council/wolverhampton","Virgin Trains","148.70","Democratic Support","4112","Public Transport","06/03/2018"
"Wolverhampton City Council","http://opendatacommunities.org/id/metropolitan-district-council/wolverhampton","CT WOLVERHAMPTON","15.00","EIP Locality 4","8398","Grant Payments","06/03/2018"
"Wolverhampton City Council","http://opendatacommunities.org/id/metropolitan-district-council/wolverhampton","WEST COAST TRAINS","7.80","Economic Development","4112","Public Transport","06/03/2018"
"Wolverhampton City Council","http://opendatacommunities.org/id/metropolitan-district-council/wolverhampton","JOLLYBROLLY","210.45","Communications & Marketing - General","5631","Equipment - Purchase","06/03/2018"
"Wolverhampton City Council","http://opendatacommunities.org/id/metropolitan-district-council/wolverhampton","CODSALL FLOORING","274.95","Headstart Hubs","5713","Equipment - Purchase","06/03/2018"
"Wolverhampton City Council","http://opendatacommunities.org/id/metropolitan-district-council/wolverhampton","PRODUCT SUPPORT AG","6.66","Headstart - Young People Engagement","5968","Computing - Maint Agreements","06/03/2018"
"Wolverhampton City Council","http://opendatacommunities.org/id/metropolitan-district-council/wolverhampton","PRODUCT SUPPORT AG","6.66","Headstart - Young People Engagement","5968","Computing - Maint Agreements","06/03/2018"
"Wolverhampton City Council","http://opendatacommunities.org/id/metropolitan-district-council/wolverhampton","CITB","25.00","IMPACT","8220","Training Expenses","06/03/2018"
"Wolverhampton City Council","http://opendatacommunities.org/id/metropolitan-district-council/wolverhampton","WOLVERHAMPTON CC","10.42","IMPACT","7523","Car Allowances","06/03/2018"
"Wolverhampton City Council","http://opendatacommunities.org/id/metropolitan-district-council/wolverhampton","TRIPLE A EXECUTIVE CAR","24.00","IMPACT","4121","Client Transport","06/03/2018"
"Wolverhampton City Council","http://opendatacommunities.org/id/metropolitan-district-council/wolverhampton","Trainline","28.05","LAC Education Team (LACE)","4112","Public Transport","06/03/2018"
"Wolverhampton City Council","http://opendatacommunities.org/id/metropolitan-district-council/wolverhampton","Trainline","74.20","LAC Transitions Team","4112","Client Allowances","06/03/2018"
"Wolverhampton City Council","http://opendatacommunities.org/id/metropolitan-district-council/wolverhampton","WM MORRISONS","11.37","Families In Focus","5411","Provisions (Not for resale)","06/03/2018"
"Wolverhampton City Council","http://opendatacommunities.org/id/metropolitan-district-council/wolverhampton","Cross Country Trains","46.80","Pupil & Student Support","4112","Public Transport","06/03/2018"
"Wolverhampton City Council","http://opendatacommunities.org/id/metropolitan-district-council/wolverhampton","Cross Country Trains","7.80","SEN Special Education Admin","4112","Public Transport","06/03/2018"
"Wolverhampton City Council","http://opendatacommunities.org/id/metropolitan-district-council/wolverhampton","THE EMERGENCY PLAN","399.00","Business Continuity & Emergency Planning","8699","Staff Advertising Costs","06/03/2018"
"Wolverhampton City Council","http://opendatacommunities.org/id/metropolitan-district-council/wolverhampton","ARGOS LTD","30.82","LAC Transitions Team","5310","Client Allowances","06/03/2018"
"Wolverhampton City Council","http://opendatacommunities.org/id/metropolitan-district-council/wolverhampton","POST OFFICE COUNTER","87.50","Adoption and Residence Team & Allowances","9402","Comms - Postage","06/03/2018"
"Wolverhampton City Council","http://opendatacommunities.org/id/metropolitan-district-council/wolverhampton","TESCO STORES 5194","90.80","Towers Outdoor Education Centre","5411","Provisions (Not for resale)","06/03/2018"
"Wolverhampton City Council","http://opendatacommunities.org/id/metropolitan-district-council/wolverhampton","GO OUTDOORS","133.65","Transportation General","5941","Equipment - Purchase","05/03/2018"
"Wolverhampton City Council","http://opendatacommunities.org/id/metropolitan-district-council/wolverhampton","PAYPAL  123REGLIMIT","47.95","Technical Support","4816","Computing - Purchase of Software","05/03/2018"
"Wolverhampton City Council","http://opendatacommunities.org/id/metropolitan-district-council/wolverhampton","Amazon UK Marketplace","13.40","Global Budgets","5942","Books","05/03/2018"
"Wolverhampton City Council","http://opendatacommunities.org/id/metropolitan-district-council/wolverhampton","Amazon UK Marketplace","7.99","Global Budgets","5942","Books","05/03/2018"
"Wolverhampton City Council","http://opendatacommunities.org/id/metropolitan-district-council/wolverhampton","WM MORRISON 024","35.53","Ernest Bold Court","5411","Provisions (Not for resale)","05/03/2018"
"Wolverhampton City Council","http://opendatacommunities.org/id/metropolitan-district-council/wolverhampton","Amazon UK Marketplace","56.35","Community Enablement","5942","Services - Supplies & Services to users","05/03/2018"
"Wolverhampton City Council","http://opendatacommunities.org/id/metropolitan-district-council/wolverhampton","Amazon UK Marketplace","12.47","Community Enablement","5942","Services - Supplies & Services to users","05/03/2018"
"Wolverhampton City Council","http://opendatacommunities.org/id/metropolitan-district-council/wolverhampton","THE POST OFFICE","3.50","CIN/CP Social Work Unit - Area 4","9402","Section 17","05/03/2018"
"Wolverhampton City Council","http://opendatacommunities.org/id/metropolitan-district-council/wolverhampton","Wolverhampton Fair Tra","32.40","Civic Centre Catering","5411","Provisions (Not for resale)","05/03/2018"
"Wolverhampton City Council","http://opendatacommunities.org/id/metropolitan-district-council/wolverhampton","Trainline","183.50","Director of Governance","4112","Public Transport","05/03/2018"
"Wolverhampton City Council","http://opendatacommunities.org/id/metropolitan-district-council/wolverhampton","LINKEDIN-368 5397454","2675.34","Strategic ICTS (ICT Serv Budget)","5968","Subscriptions","05/03/2018"
"Wolverhampton City Council","http://opendatacommunities.org/id/metropolitan-district-council/wolverhampton","AMZ My charity boxes","-2.49","Mayoral Expenses","5999","Equipment - Purchase","05/03/2018"
"Wolverhampton City Council","http://opendatacommunities.org/id/metropolitan-district-council/wolverhampton","AMZ My charity boxes","-2.50","Mayoral Expenses","5999","Equipment - Purchase","05/03/2018"
"Wolverhampton City Council","http://opendatacommunities.org/id/metropolitan-district-council/wolverhampton","Amazon UK Marketplace","44.15","Mayoral Expenses","5942","Equipment - Purchase","05/03/2018"
"Wolverhampton City Council","http://opendatacommunities.org/id/metropolitan-district-council/wolverhampton","Amazon UK Marketplace","44.14","Mayoral Expenses","5942","Equipment - Purchase","05/03/2018"
"Wolverhampton City Council","http://opendatacommunities.org/id/metropolitan-district-council/wolverhampton","HOTELS.COM145959841157","23.00","Emergency Duty Team","4722","Public Transport","05/03/2018"
"Wolverhampton City Council","http://opendatacommunities.org/id/metropolitan-district-council/wolverhampton","ASDA GEORGE COM LEEDS","55.79","LAC Transitions Team","5411","Client Allowances","05/03/2018"
"Wolverhampton City Council","http://opendatacommunities.org/id/metropolitan-district-council/wolverhampton","B&M RETAIL LTD","3.99","Towers Outdoor Education Centre","5310","Equipment - Purchase","05/03/2018"
"Wolverhampton City Council","http://opendatacommunities.org/id/metropolitan-district-council/wolverhampton","TESCO STORES 5194","24.00","Towers Outdoor Education Centre","5411","Provisions (Not for resale)","05/03/2018"
"Wolverhampton City Council","http://opendatacommunities.org/id/metropolitan-district-council/wolverhampton","HALFORDS 0775","19.12","Mayoral Expenses","5940","Cleaning Supplies and Materials","05/03/2018"
"Wolverhampton City Council","http://opendatacommunities.org/id/metropolitan-district-council/wolverhampton","Amazon EU","31.79","Educational Studies Delivery Area","5969","Equipment - Purchase","05/03/2018"
"Wolverhampton City Council","http://opendatacommunities.org/id/metropolitan-district-council/wolverhampton","EB  VOICES OF WOMEN IN","8.33","Archives","7399","Conference Expenses","05/03/2018"
"Wolverhampton City Council","http://opendatacommunities.org/id/metropolitan-district-council/wolverhampton","THE POST OFFICE","100.00","Wholly Owned Company - Operations","9402","Comms - Postage","05/03/2018"
"Wolverhampton City Council","http://opendatacommunities.org/id/metropolitan-district-council/wolverhampton","ASDA SUPERSTORE","10.79","Mayoral Expenses","5411","Provisions (Not for resale)","05/03/2018"
"Wolverhampton City Council","http://opendatacommunities.org/id/metropolitan-district-council/wolverhampton","REGISTRARS OFFICE","60.00","Adoption and Residence Team & Allowances","8299","Services - Fees and Charges","05/03/2018"
"Wolverhampton City Council","http://opendatacommunities.org/id/metropolitan-district-council/wolverhampton","PAYPAL  ROYALNATION","7.99","Strategic ICTS (ICT Serv Budget)","8398","Services - Supplies & Services to users","05/03/2018"
"Wolverhampton City Council","http://opendatacommunities.org/id/metropolitan-district-council/wolverhampton","CPC","14.33","Central Baths","5065","Equipment - R & M","05/03/2018"
"Wolverhampton City Council","http://opendatacommunities.org/id/metropolitan-district-council/wolverhampton","Amazon UK Marketplace","8.31","Intensive Family Support Team","5942","Books","05/03/2018"
"Wolverhampton City Council","http://opendatacommunities.org/id/metropolitan-district-council/wolverhampton","Virgintrains.co.uk","-52.40","LAC Team","4112","Public Transport","05/03/2018"
"Wolverhampton City Council","http://opendatacommunities.org/id/metropolitan-district-council/wolverhampton","Virgintrains.co.uk","-65.10","LAC Team","4112","Public Transport","05/03/2018"
"Wolverhampton City Council","http://opendatacommunities.org/id/metropolitan-district-council/wolverhampton","Virgin Trains","62.40","LAC Team","4112","Public Transport","05/03/2018"
"Wolverhampton City Council","http://opendatacommunities.org/id/metropolitan-district-council/wolverhampton","NATIONWIDE","50.00","Emergency Duty Team","6011","Financial Assistance In Exceptional Circ","05/03/2018"
"Wolverhampton City Council","http://opendatacommunities.org/id/metropolitan-district-council/wolverhampton","NCP BIRMINGHAM AIRPORT","38.83","Strategic Director Place","7523","Car Allowances","02/03/2018"
"Wolverhampton City Council","http://opendatacommunities.org/id/metropolitan-district-council/wolverhampton","Amazon UK Marketplace","11.94","Specialist Support Service - North","5942","Books","02/03/2018"
"Wolverhampton City Council","http://opendatacommunities.org/id/metropolitan-district-council/wolverhampton","Amazon UK Marketplace","8.03","Specialist Support Service - North","5942","Books","02/03/2018"
"Wolverhampton City Council","http://opendatacommunities.org/id/metropolitan-district-council/wolverhampton","Amazon UK Marketplace","12.49","Specialist Support Service - North","5942","Books","02/03/2018"
"Wolverhampton City Council","http://opendatacommunities.org/id/metropolitan-district-council/wolverhampton","ZEPHYR RACING PENNANTS","642.00","Civic Centre","5399","Equipment - Purchase","02/03/2018"
"Wolverhampton City Council","http://opendatacommunities.org/id/metropolitan-district-council/wolverhampton","REGISTRARS OFFICE","60.00","Head of Service - CINCP","8299","Services - Professional Fees","02/03/2018"
"Wolverhampton City Council","http://opendatacommunities.org/id/metropolitan-district-council/wolverhampton","REGISTRARS OFFICE","27.00","Head of Service - CINCP","8299","Services - Professional Fees","02/03/2018"
"Wolverhampton City Council","http://opendatacommunities.org/id/metropolitan-district-council/wolverhampton","J VAN VLIET BIRMINGHAM","77.83","Creative Studies Delivery Area","5399","Materials for resale","02/03/2018"
"Wolverhampton City Council","http://opendatacommunities.org/id/metropolitan-district-council/wolverhampton","Virgintrains.co.uk","-74.00","Black Country Transport Director","4112","Public Transport","02/03/2018"
"Wolverhampton City Council","http://opendatacommunities.org/id/metropolitan-district-council/wolverhampton","NCP BIRMINGHAM AIRPORT","46.60","Delivery & OCE Development","7523","Car Allowances","02/03/2018"
"Wolverhampton City Council","http://opendatacommunities.org/id/metropolitan-district-council/wolverhampton","N SOFTWARE INC","4211.29","Customer Services","5045","Computing - Purchase of Hardware","02/03/2018"
"Wolverhampton City Council","http://opendatacommunities.org/id/metropolitan-district-council/wolverhampton","TFM FARM & COUNTRY SUP","24.07","Northicote Farm","5399","Equipment - Purchase","02/03/2018"
"Wolverhampton City Council","http://opendatacommunities.org/id/metropolitan-district-council/wolverhampton","ARGOS RETAIL GROUP","15.99","EIP Locality 2","5310","Equipment - Purchase","02/03/2018"
"Wolverhampton City Council","http://opendatacommunities.org/id/metropolitan-district-council/wolverhampton","NOTEMACHINE","250.00","Childrens with Disabilities Team","6011","Financial Assistance In Exceptional Circ","02/03/2018"
"Wolverhampton City Council","http://opendatacommunities.org/id/metropolitan-district-council/wolverhampton","GOOGLE  SVCSAPPS_wolve","9.90","Civic Halls Non Direct Management A/C","5968","Subscriptions","02/03/2018"
"Wolverhampton City Council","http://opendatacommunities.org/id/metropolitan-district-council/wolverhampton","POST OFFICE COUNTER","228.00","Fostering Team & Allowances","9402","Comms - Postage","02/03/2018"
"Wolverhampton City Council","http://opendatacommunities.org/id/metropolitan-district-council/wolverhampton","XL DISPLAYS LTD","261.00","WV Active Marketing","5099","Equipment - Purchase","02/03/2018"
"Wolverhampton City Council","http://opendatacommunities.org/id/metropolitan-district-council/wolverhampton","Amazon UK Marketplace","99.49","WV Active Marketing","5942","Books","02/03/2018"
"Wolverhampton City Council","http://opendatacommunities.org/id/metropolitan-district-council/wolverhampton","GLOBELINK INT TRAVEL I","132.96","Leonardo Da Vinci Project","6300","Services - Supplies & Services to users","02/03/2018"
"Wolverhampton City Council","http://opendatacommunities.org/id/metropolitan-district-council/wolverhampton","Amazon UK Marketplace","8.29","Intensive Family Support Team","5942","Books","02/03/2018"
"Wolverhampton City Council","http://opendatacommunities.org/id/metropolitan-district-council/wolverhampton","Amazon UK Marketplace","19.09","Intensive Family Support Team","5942","Books","02/03/2018"
"Wolverhampton City Council","http://opendatacommunities.org/id/metropolitan-district-council/wolverhampton","Virgin Trains","62.40","LAC Team","4112","Public Transport","02/03/2018"
"Wolverhampton City Council","http://opendatacommunities.org/id/metropolitan-district-council/wolverhampton","Virgin Trains","62.40","LAC Team","4112","Public Transport","02/03/2018"
"Wolverhampton City Council","http://opendatacommunities.org/id/metropolitan-district-council/wolverhampton","WWW.ARGOS.CO.UK","123.91","Service Wide","5310","Equipment - Purchase","02/03/2018"
"Wolverhampton City Council","http://opendatacommunities.org/id/metropolitan-district-council/wolverhampton","Amazon UK Marketplace","119.98","EIP Locality 1","5942","Equipment - Purchase","02/03/2018"
"Wolverhampton City Council","http://opendatacommunities.org/id/metropolitan-district-council/wolverhampton","Amazon UK Marketplace","58.99","EIP Locality 1","5942","Equipment - Purchase","02/03/2018"
"Wolverhampton City Council","http://opendatacommunities.org/id/metropolitan-district-council/wolverhampton","AMAZON SVCS EU-UK AMAZ","59.99","Employment Programmes","5942","Books","02/03/2018"
"Wolverhampton City Council","http://opendatacommunities.org/id/metropolitan-district-council/wolverhampton","CUMMINGS BROTHERS LOCK","10.00","Global Budgets","7399","Equipment - Purchase","02/03/2018"
"Wolverhampton City Council","http://opendatacommunities.org/id/metropolitan-district-council/wolverhampton","DUNELM ONLINE ORDER","58.33","LAC Transitions Team","5714","Client Allowances","02/03/2018"
"Wolverhampton City Council","http://opendatacommunities.org/id/metropolitan-district-council/wolverhampton","WILKO.COM","40.00","LAC Transitions Team","5722","Client Allowances","02/03/2018"
"Wolverhampton City Council","http://opendatacommunities.org/id/metropolitan-district-council/wolverhampton","CHARTERED INST OF","24.00","Waste Coll & Recycling Serv General","8999","Subscriptions","02/03/2018"
"Wolverhampton City Council","http://opendatacommunities.org/id/metropolitan-district-council/wolverhampton","POUNDWORLD RETAIL","11.67","City Direct","5310","Equipment - Purchase","02/03/2018"
"Wolverhampton City Council","http://opendatacommunities.org/id/metropolitan-district-council/wolverhampton","WORTH READING LTD","123.41","LAC Education Team (LACE)","5942","Books","02/03/2018"
"Wolverhampton City Council","http://opendatacommunities.org/id/metropolitan-district-council/wolverhampton","WWW.ARGOS.CO.UK","30.92","LAC Transitions Team","5310","Client Allowances","02/03/2018"
"Wolverhampton City Council","http://opendatacommunities.org/id/metropolitan-district-council/wolverhampton","WP-CENTRAL TAXIS L","144.00","Adoption and Residence Team & Allowances","4121","Client Transport","02/03/2018"
"Wolverhampton City Council","http://opendatacommunities.org/id/metropolitan-district-council/wolverhampton","Trainline","-166.30","Service Director City Environment","4112","Public Transport","02/03/2018"
"Wolverhampton City Council","http://opendatacommunities.org/id/metropolitan-district-council/wolverhampton","SCREWFIX DIRECT LT","7.31","Caretakers Community Centre","5211","Fixtures and Fittings - Purchases","02/03/2018"
"Wolverhampton City Council","http://opendatacommunities.org/id/metropolitan-district-council/wolverhampton","BILASH","95.60","Managing Director","5085","Equipment - Purchase","02/03/2018"
"Wolverhampton City Council","http://opendatacommunities.org/id/metropolitan-district-council/wolverhampton","CPC","7.74","Central Baths","5065","Equipment - R & M","02/03/2018"
"Wolverhampton City Council","http://opendatacommunities.org/id/metropolitan-district-council/wolverhampton","Amazon UK Marketplace","165.00","Central Baths","5942","Books","02/03/2018"
"Wolverhampton City Council","http://opendatacommunities.org/id/metropolitan-district-council/wolverhampton","WM MORRISON 024","9.48","EIP Locality 2","5411","Provisions (Not for resale)","01/03/2018"
"Wolverhampton City Council","http://opendatacommunities.org/id/metropolitan-district-council/wolverhampton","ARGOS RETAIL GROUP","62.46","EIP Locality 2","5310","Equipment - Purchase","01/03/2018"
"Wolverhampton City Council","http://opendatacommunities.org/id/metropolitan-district-council/wolverhampton","NOTEMACHINE","100.00","Childrens with Disabilities Team","6011","Section 17","01/03/2018"
"Wolverhampton City Council","http://opendatacommunities.org/id/metropolitan-district-council/wolverhampton","NOTEMACHINE","250.00","Childrens with Disabilities Team","6011","Section 17","01/03/2018"
"Wolverhampton City Council","http://opendatacommunities.org/id/metropolitan-district-council/wolverhampton","FACEBK 8BNPEE2H52","56.51","Audience Development","7311","Marketing \ Non-staff advertising","01/03/2018"
"Wolverhampton City Council","http://opendatacommunities.org/id/metropolitan-district-council/wolverhampton","FACEBK 2BNPEE2H52","31.14","Audience Development","7311","Marketing \ Non-staff advertising","01/03/2018"
"Wolverhampton City Council","http://opendatacommunities.org/id/metropolitan-district-council/wolverhampton","CURRYS S/S","91.66","Ground Maintenance East","5732","Equipment - Purchase","01/03/2018"
"Wolverhampton City Council","http://opendatacommunities.org/id/metropolitan-district-council/wolverhampton","HAMPSHIREFL","156.07","WV Active Marketing","5949","Materials","01/03/2018"
"Wolverhampton City Council","http://opendatacommunities.org/id/metropolitan-district-council/wolverhampton","FACEBK MDG8GDAA82","76.44","WV Active Marketing","7311","Marketing \ Non-staff advertising","01/03/2018"
"Wolverhampton City Council","http://opendatacommunities.org/id/metropolitan-district-council/wolverhampton","FACEBK LDG8GDAA82","108.51","WV Active Marketing","7311","Marketing \ Non-staff advertising","01/03/2018"
"Wolverhampton City Council","http://opendatacommunities.org/id/metropolitan-district-council/wolverhampton","FACEBK B5KYCFWAR2","9.35","Communications & Marketing - General","7311","Marketing \ Non-staff advertising","01/03/2018"
"Wolverhampton City Council","http://opendatacommunities.org/id/metropolitan-district-council/wolverhampton","FACEBK A5KYCFWAR2","446.54","Communications & Marketing - General","7311","Marketing \ Non-staff advertising","01/03/2018"
"Wolverhampton City Council","http://opendatacommunities.org/id/metropolitan-district-council/wolverhampton","WWW.GOV.UK","10.00","Private Sector Housing","8999","Services - Professional Fees","01/03/2018"
"Wolverhampton City Council","http://opendatacommunities.org/id/metropolitan-district-council/wolverhampton","B & Q 1162","48.00","MASH","5211","Materials","01/03/2018"
"Wolverhampton City Council","http://opendatacommunities.org/id/metropolitan-district-council/wolverhampton","Amazon UK Marketplace","287.50","Global Budgets","5942","Equipment - Purchase","01/03/2018"
"Wolverhampton City Council","http://opendatacommunities.org/id/metropolitan-district-council/wolverhampton","E01577600000000","200.00","EIP Locality 3","6011","Grant Payments","01/03/2018"
"Wolverhampton City Council","http://opendatacommunities.org/id/metropolitan-district-council/wolverhampton","WICKES","11.66","Specialist Support Service - North","5211","Equipment - R & M","01/03/2018"
"Wolverhampton City Council","http://opendatacommunities.org/id/metropolitan-district-council/wolverhampton","E.ON ENERGY SOLUTIONS","480.53","LAC Team","4900","Financial Assistance In Exceptional Circ","01/03/2018"
"Wolverhampton City Council","http://opendatacommunities.org/id/metropolitan-district-council/wolverhampton","NEXT WOLVERHAMPTON 056","89.05","Mayoral Expenses","5651","Clothing / Uniforms","01/03/2018"
"Wolverhampton City Council","http://opendatacommunities.org/id/metropolitan-district-council/wolverhampton","Amazon EU","22.82","Specialist Support Service - North","5969","Stationery","01/03/2018"
"Wolverhampton City Council","http://opendatacommunities.org/id/metropolitan-district-council/wolverhampton","Amazon EU","38.04","Specialist Support Service - North","5969","Stationery","01/03/2018"
"Wolverhampton City Council","http://opendatacommunities.org/id/metropolitan-district-council/wolverhampton","Amazon EU","71.87","Specialist Support Service - North","5969","Stationery","01/03/2018"
"Wolverhampton City Council","http://opendatacommunities.org/id/metropolitan-district-council/wolverhampton","Trainline","-281.00","CIN/CP Social Work Unit - Area 4","4112","Public Transport","01/03/2018"
"Wolverhampton City Council","http://opendatacommunities.org/id/metropolitan-district-council/wolverhampton","Trainline","195.50","CIN/CP Social Work Unit - Area 4","4112","Public Transport","01/03/2018"
"Wolverhampton City Council","http://opendatacommunities.org/id/metropolitan-district-council/wolverhampton","NOTEMACHINE","250.00","Headstart - Young People Engagement","6011","Financial Assistance In Exceptional Circ","01/03/2018"
"Wolverhampton City Council","http://opendatacommunities.org/id/metropolitan-district-council/wolverhampton","WOLVERHAMPTON CC","3.00","Headstart - Young People Engagement","7523","Car Allowances","01/03/2018"
"Wolverhampton City Council","http://opendatacommunities.org/id/metropolitan-district-council/wolverhampton","EDUCATION & TRAINI","-85.00","Admin & Support","8220","Training Expenses","01/03/2018"
"Wolverhampton City Council","http://opendatacommunities.org/id/metropolitan-district-council/wolverhampton","WWW.ARGOS.CO.UK","121.59","LAC Transitions Team","5310","Client Allowances","01/03/2018"
"Wolverhampton City Council","http://opendatacommunities.org/id/metropolitan-district-council/wolverhampton","HEADSETS4BUSINESS","120.00","Strategic ICTS (ICT Serv Budget)","4812","Equipment - Purchase","01/03/2018"
"Wolverhampton City Council","http://opendatacommunities.org/id/metropolitan-district-council/wolverhampton","ITUNES.COM/BILL","0.79","Strategic ICTS (ICT Serv Budget)","5735","Computing - Purchase of Software","01/03/2018"
"Wolverhampton City Council","http://opendatacommunities.org/id/metropolitan-district-council/wolverhampton","WWW.LIFESAVERSDIRECT","46.90","Central Baths","5965","Equipment - Purchase","01/03/2018"
"Wolverhampton City Council","http://opendatacommunities.org/id/metropolitan-district-council/wolverhampton","Amazon UK Marketplace","7.99","Intensive Family Support Team","5942","Books","01/03/2018"
"Wolverhampton City Council","http://opendatacommunities.org/id/metropolitan-district-council/wolverhampton","AMAZON EU AMAZON.CO.UK","14.16","Intensive Family Support Team","5999","Equipment - Purchase","01/03/2018"
"Wolverhampton City Council","http://opendatacommunities.org/id/metropolitan-district-council/wolverhampton","ASDA SUPERSTORE","13.35","EIP Locality 5","5411","Provisions (Not for resale)","01/03/2018"
"Wolverhampton City Council","http://opendatacommunities.org/id/metropolitan-district-council/wolverhampton","THE WORKS","5.00","Archives","5310","Books","01/03/2018"
"Wolverhampton City Council","http://opendatacommunities.org/id/metropolitan-district-council/wolverhampton","CAPITAL H&B LTD","57.93","IMPACT","7230","Equipment - Purchase","01/03/2018"
"Wolverhampton City Council","http://opendatacommunities.org/id/metropolitan-district-council/wolverhampton","REGISTRARS OFFICE","30.00","MASH","8299","Training Expenses","01/03/2018"
"Wolverhampton City Council","http://opendatacommunities.org/id/metropolitan-district-council/wolverhampton","REGISTRARS OFFICE","21.00","CIN/CP Social Work Unit - Area 5","8299","Section 17","01/03/2018"
"Wolverhampton City Council","http://opendatacommunities.org/id/metropolitan-district-council/wolverhampton","THE YORK HOTEL","125.00","CIN/CP Social Work Unit - Area 8","7011","Section 17","01/03/2018"
"Wolverhampton City Council","http://opendatacommunities.org/id/metropolitan-district-council/wolverhampton","SAINSBURYS","200.00","Duke Street Bungalows","6011","Provisions (Not for resale)","01/03/2018"
"Wolverhampton City Council","http://opendatacommunities.org/id/metropolitan-district-council/wolverhampton","HTTPS://ADEXA.CO.UK/","44.00","Delivery & OCE Development","5046","Equipment - Purchase","01/03/2018"
"Wolverhampton City Council","http://opendatacommunities.org/id/metropolitan-district-council/wolverhampton","PO LOW HILL 1592","200.00","EIP Locality 7","6011","Grant Payments","01/03/2018"
"Wolverhampton City Council","http://opendatacommunities.org/id/metropolitan-district-council/wolverhampton","THE FLOWER STALL","50.00","Mayoral Expenses","5992","Hospitality","01/03/2018"
"Wolverhampton City Council","http://opendatacommunities.org/id/metropolitan-district-council/wolverhampton","LOYD 37 CHURCH STREET","200.00","EIP Locality 8","6011","Grant Payments","01/03/2018"
"Wolverhampton City Council","http://opendatacommunities.org/id/metropolitan-district-council/wolverhampton","WWW.THERANGE.CO.UK","299.94","LAC Transitions Team","5712","Client Allowances","01/03/2018"
